Workbook

Sheet Setup
A1: 64άρι ταμπλό | D1: Θέσεις | E1: seed | H1: 0 | I1: seed | J1: space pos | K1: Index | L1: Value | N1: 0 0 0 0 0 0 0 0 0 0 0 0 0 0 0 0 0 0 0 0 0 0 0 0 0 0 0 0 0 0 0 0 0 0 0 0 0 0 0 0 0 0 1 2 3 4 5 6 7 8 9 10 11 12 13 14 15 16 19 20 21 18 22 17
D2: 3-4 | E2: =VALUE(LEFT(F2,1)) -> 3 | F2: 3 4 | H2: =IF(I2="-","-",IF(I2>0,H1+1,0)) -> 0 | I2: =IF(J2>0,VALUE(MID($N$1,1,J2-1)),"-") -> 0 | J2: =IF(LEN($N$1)>1,FIND(" ",$N$1,1),0) -> 2 | K2: 0 | L2: 0 | N2: 1 2 3 4 5 6 7 8 9 10 11 12 13 14 15 16
A3: Διοργανωτής: | B3: ΕΦΟΑ | E3: =VALUE(RIGHT(F2,1)) -> 4 | H3: =IF(I3="-","-",IF(I3>0,H2+1,0)) -> 0 | I3: =IF(J3>0,VALUE(MID($N$1,J2+1,J3-J2-1)),"-") -> 0 | J3: =IF(AND(J2>0,LEN($N$1)>J2+1),FIND(" ",$N$1,J2+1),0) -> 4 | K3: 0 | L3: 0 | N3: 0 0 0 0 0 0 0 0 0 0 0 0 0 0 0 0 0 0 0 0 0 0 0 0 0 0 0 0 0 0 0 0 0 0 0 0 0 0 0 0 0 0 0 0 0 0 0 0 0 0 0 0 0 0 0 0 0 0 0 0 0 0 0 0
A4: Τίτλος Τουρνουά: | B4: ΠΑΝΕΛΛΑΔΙΚΟ U10 | D4: Θέσεις | E4: seed | H4: =IF(I4>0,H3+1,0) -> 0 | I4: 0 | J4: 6 | K4: 0 | L4: 0
A5: type: | B5: u10 | D5: 5-8 | E5: =TRIM(LEFT(F5,(FIND(" ",F5,1)-1))) -> 7 | F5: 7 5 8 6 | H5: 0 | I5: 0 | J5: 8 | K5: 0 | L5: 0
A6: Έδρα αγώνων: | B6: ΑΕΤ ΝΙΚΗ ΠΑΤΡΩΝ | E6: =TRIM(MID(F5,(FIND(" ",F5,1)),FIND(" ",F5,(FIND(" ",F5,1)+1))-(FIND(" ",F5,1)))) -> 5 | H6: 0 | I6: 0 | J6: 10 | K6: 0 | L6: 0
A7: Κατηγορία: | B7: A-A C | E7: =TRIM(MID(F5, (FIND(" ",F5,(FIND(" ",F5,1)+1))+1), (FIND(" ",F5,(FIND(" ",F5,(FIND(" ",F5,1)+1))+1)))-(FIND(" ",F5,(FIND(" ",F5,1)+1))+1))) -> 8 | H7: 0 | I7: 0 | J7: 12 | K7: 0 | L7: 0
A8: Έναρξη: | B8: 24 | E8: =TRIM(RIGHT(F5,LEN(F5)-(FIND(" ",F5,(FIND(" ",F5,(FIND(" ",F5,1)+1))+1))))) -> 6 | H8: 0 | I8: 0 | J8: 14 | K8: 0 | L8: 0
A9: Λήξη: | B9: 25 OKT 2015 | D9: Θέσεις | E9: seed | H9: 0 | I9: =IF(J9>0,VALUE(MID($N$1,J8+1,J9-J8-1)),"-") -> 0 | J9: 16 | K9: 0 | L9: 0
A10: Επιδιατητής: | B10: Στέφος Αλέξης | D10: 9-12 | E10: =TRIM(LEFT(F10,(FIND(" ",F10,1)-1))) -> 12 | F10: 12 11 10 9 | H10: 0 | I10: 0 | J10: 18 | K10: 0 | L10: 0
A11: Τηλέφωνο επιδ: | B11: 2610642100 | E11: =TRIM(MID(F10,(FIND(" ",F10,1)),FIND(" ",F10,(FIND(" ",F10,1)+1))-(FIND(" ",F10,1)))) -> 11 | H11: 0 | I11: 0 | J11: 20 | K11: 0 | L11: 0
E12: =TRIM(MID(F10, (FIND(" ",F10,(FIND(" ",F10,1)+1))+1), (FIND(" ",F10,(FIND(" ",F10,(FIND(" ",F10,1)+1))+1)))-(FIND(" ",F10,(FIND(" ",F10,1)+1))+1))) -> 10 | H12: 0 | I12: 0 | J12: 22 | K12: 0 | L12: 0
E13: =TRIM(RIGHT(F10,LEN(F10)-(FIND(" ",F10,(FIND(" ",F10,(FIND(" ",F10,1)+1))+1))))) -> 9 | H13: 0 | I13: 0 | J13: 24 | K13: 0 | L13: 0
D14: Θέσεις | E14: seed | H14: 0 | I14: 0 | J14: 26 | K14: 0 | L14: 0
D15: 13-16 | E15: =TRIM(LEFT(F15,(FIND(" ",F15,1)-1))) -> 13 | F15: 13 15 16 14 | H15: 0 | I15: 0 | J15: 28 | K15: 0 | L15: 0
E16: =TRIM(MID(F15,(FIND(" ",F15,1)),FIND(" ",F15,(FIND(" ",F15,1)+1))-(FIND(" ",F15,1)))) -> 15 | H16: 0 | I16: =IF(J16>0,VALUE(MID($N$1,J15+1,J16-J15-1)),"-") -> 0 | J16: 30 | K16: 0 | L16: 0
A17: Main Draw | B17: ="("&COUNTBLANK(DrawPrep!D3:D66)&")" -> (42) | E17: =TRIM(MID(F15, (FIND(" ",F15,(FIND(" ",F15,1)+1))+1), (FIND(" ",F15,(FIND(" ",F15,(FIND(" ",F15,1)+1))+1)))-(FIND(" ",F15,(FIND(" ",F15,1)+1))+1))) -> 16 | H17: 0 | I17: =IF(J17>0,VALUE(MID($N$1,J16+1,J17-J16-1)),"-") -> 0 | J17: 32 | K17: 0 | L17: 0
A18: Πλήθος bye (0-31): | B18: =COUNTBLANK(DrawPrep!D3:D66) -> 42 | E18: =TRIM(RIGHT(F15,LEN(F15)-(FIND(" ",F15,(FIND(" ",F15,(FIND(" ",F15,1)+1))+1))))) -> 14 | H18: 0 | I18: =IF(J18>0,VALUE(MID($N$1,J17+1,J18-J17-1)),"-") -> 0 | J18: 34 | K18: 0 | L18: 0
A19: Αριθμός θέσεων seeded: | B19: 16 | H19: 0 | I19: 0 | J19: 36 | K19: 0 | L19: 0
H20: 0 | I20: 0 | J20: 38 | K20: 0 | L20: 0
H21: 0 | I21: 0 | J21: 40 | K21: 0 | L21: 0
H22: 0 | I22: 0 | J22: 42 | K22: 0 | L22: 0
H23: 0 | I23: 0 | J23: 44 | K23: 0 | L23: 0
A24: md (# για off) | B24: ok | H24: 0 | I24: 0 | J24: 46 | K24: 0 | L24: 0
H25: 0 | I25: 0 | J25: 48 | K25: 0 | L25: 0
A26: =RandUniq(3;4;2) | H26: 0 | I26: 0 | J26: 50 | K26: 0 | L26: 0
A27: =RandUniq(5;8;4) | H27: 0 | I27: 0 | J27: 52 | K27: 0 | L27: 0
A28: =RandUniq(9;12;4) | H28: 0 | I28: 0 | J28: 54 | K28: 0 | L28: 0
A29: =RandUniq(13;16;4) | H29: 0 | I29: 0 | J29: 56 | K29: 0 | L29: 0
H30: 0 | I30: 0 | J30: 58 | K30: 0 | L30: 0
A31: =CONCATENATE(LEFT($N$3;$B$18*2);IF($B$19<10;LEFT($N$2;$B$19*2);LEFT($N$2;$B$19*2+$B$19-10+1));RandUniq($B$19+1;64-$B$18;64-$B$19-$B$18);" ") | H31: 0 | I31: 0 | J31: 60 | K31: 0 | L31: 0
H32: 0 | I32: 0 | J32: 62 | K32: 0 | L32: 0
H33: 0 | I33: 0 | J33: 64 | K33: 0 | L33: 0
H34: 0 | I34: 0 | J34: 66 | K34: 0 | L34: 0
H35: 0 | I35: 0 | J35: 68 | K35: 0 | L35: 0
H36: 0 | I36: 0 | J36: 70 | K36: 0 | L36: 0
H37: 0 | I37: 0 | J37: 72 | K37: 0 | L37: 0
H38: 0 | I38: 0 | J38: 74 | K38: 0 | L38: 0
H39: 0 | I39: 0 | J39: 76 | K39: 0 | L39: 0
H40: 0 | I40: 0 | J40: 78 | K40: 0 | L40: 0
H41: 0 | I41: 0 | J41: 80 | K41: 0 | L41: 0
H42: 0 | I42: 0 | J42: 82 | K42: 0 | L42: 0
H43: 0 | I43: 0 | J43: 84 | K43: 0 | L43: 0
H44: 1 | I44: 1 | J44: 86 | K44: 1 | L44: 1
H45: 2 | I45: 2 | J45: 88 | K45: 2 | L45: 2
H46: 3 | I46: 3 | J46: 90 | K46: 3 | L46: 3
H47: 4 | I47: 4 | J47: 92 | K47: 4 | L47: 4
H48: 5 | I48: 5 | J48: 94 | K48: 5 | L48: 5
H49: 6 | I49: 6 | J49: 96 | K49: 6 | L49: 6
H50: 7 | I50: 7 | J50: =IF(AND(J49>0,LEN($N$1)>J49+1),FIND(" ",$N$1,J49+1),0) -> 98 | K50: 7 | L50: 7
H51: 8 | I51: 8 | J51: 100 | K51: 8 | L51: 8
H52: 9 | I52: 9 | J52: 102 | K52: 9 | L52: 9
H53: 10 | I53: 10 | J53: 105 | K53: 10 | L53: 10
H54: 11 | I54: 11 | J54: 108 | K54: 11 | L54: 11
H55: 12 | I55: 12 | J55: 111 | K55: 12 | L55: 12
H56: 13 | I56: 13 | J56: 114 | K56: 13 | L56: 13
H57: 14 | I57: 14 | J57: 117 | K57: 14 | L57: 14
H58: 15 | I58: 15 | J58: 120 | K58: 15 | L58: 15
H59: 16 | I59: 16 | J59: 123 | K59: 16 | L59: 16
H60: 17 | I60: 19 | J60: 126 | K60: 17 | L60: 19
H61: 18 | I61: 20 | J61: 129 | K61: 18 | L61: 20
H62: 19 | I62: 21 | J62: 132 | K62: 19 | L62: 21
H63: 20 | I63: 18 | J63: 135 | K63: 20 | L63: 18
H64: 21 | I64: 22 | J64: 138 | K64: 21 | L64: 22
H65: 22 | I65: 17 | J65: 141 | K65: 22 | L65: 17

Sheet DrawPrep
A1: =Setup!B3&", "&Setup!B4&", "&Setup!B6&", "&Setup!B8&"-"&Setup!B9 -> ΕΦΟΑ, ΠΑΝΕΛΛΑΔΙΚΟ U10, ΑΕΤ ΝΙΚΗ ΠΑΤΡΩΝ, 24-25 OKT 2015 | H1: =Setup!B7 -> A-A C
A2: α/α | B2: από | C2: Α.Μ. | D2: Ονοματεπώνυμο | E2: Σύλλογος | F2: βαθμοί | G2: Τηλέφωνο | H2: Υπογραφή | I2: SortPts | J2: Rnd | K2: trim
A3: 1 | C3: 36587 | D3: ΙΑΚΩΒΑΚΗΣ ΕΛΕΥΘΕΡΙΟΣ | E3: Ο.Α. ΦΟΙΒΟΣ ΛΑΡΙΣΑΣ | F3: 23 | I3: =IF(D3>" ",IF(F3>=0,F3+tmp!C53,tmp!C53),0) -> 23.00029058 | J3: 0.004396778626 | K3: =TRIM(D3) -> ΙΑΚΩΒΑΚΗΣ ΕΛΕΥΘΕΡΙΟΣ
A4: 2 | C4: 36852 | D4: ΤΖΩΡΤΖΑΤΟΣ ΚΩΝΣΤΑΝΤΙΝΟΣ | E4: ΑΟΑ ΠΑΤΡΩΝ | F4: 22 | I4: =IF(D4>" ",IF(F4>=0,F4+tmp!C49,tmp!C49),0) -> 22.00282161 | J4: 0.002569403994 | K4: =TRIM(D4) -> ΤΖΩΡΤΖΑΤΟΣ ΚΩΝΣΤΑΝΤΙΝΟΣ
A5: 3 | C5: 33991 | D5: ΛΑΜΠΡΟΠΟΥΛΟΣ ΜΙΧΑΛΗΣ | E5: ΑΕΚ ΤΡΙΠΟΛΗΣ | F5: 21 | I5: =IF(D5>" ",IF(F5>=0,F5+tmp!C8,tmp!C8),0) -> 21.00368079 | J5: 0.0003902955421 | K5: =TRIM(D5) -> ΛΑΜΠΡΟΠΟΥΛΟΣ ΜΙΧΑΛΗΣ
A6: 4 | C6: 40000 | D6: ΓΟΥΔΕΛΗΣ ΔΗΜΗΤΡΗΣ | E6: Α.Σ. ΑΣΤΕΡΑΣ ΠΕΝΤΕΛΙΚΟΥ | F6: 20 | I6: =IF(D6>" ",IF(F6>=0,F6+tmp!C34,tmp!C34),0) -> 20.00291648 | J6: 0.004388589126 | K6: =TRIM(D6) -> ΓΟΥΔΕΛΗΣ ΔΗΜΗΤΡΗΣ
A7: 5 | C7: 32434 | D7: ΡΟΖΗΣ ΔΗΜΗΤΡΗΣ | E7: Α.Ε.Τ. ΝΙΚΗ ΠΑΤΡΩΝ | F7: 19 | I7: =IF(D7>" ",IF(F7>=0,F7+tmp!C43,tmp!C43),0) -> 19.00444344 | J7: 0.003680787802 | K7: =TRIM(D7) -> ΡΟΖΗΣ ΔΗΜΗΤΡΗΣ
A8: 6 | C8: 37981 | D8: ΓΙΑΝΝΟΣ ΗΛΙΑΣ | E8: Α.Γ.Ο. ΦΙΛΙΠΠΙΑΔΑΣ | F8: 18 | I8: =IF(D8>" ",IF(F8>=0,F8+tmp!C37,tmp!C37),0) -> 18.00272265 | J8: 0.0007418926199 | K8: =TRIM(D8) -> ΓΙΑΝΝΟΣ ΗΛΙΑΣ
A9: 7 | C9: 37444 | D9: ΝΙΚΟΛΑΟΥ ΑΓΓΕΛΟΣ | E9: Α.Ε.Τ. ΝΙΚΗ ΠΑΤΡΩΝ | F9: 17 | I9: =IF(D9>" ",IF(F9>=0,F9+tmp!C33,tmp!C33),0) -> 17.0036379 | J9: 0.003146274625 | K9: =TRIM(D9) -> ΝΙΚΟΛΑΟΥ ΑΓΓΕΛΟΣ
A10: 8 | C10: 37478 | D10: ΚΑΡΑΟΥΛΑΝΗΣ ΒΑΣΙΛΕΙΟΣ | E10: Ο.Α. ΦΟΙΒΟΣ ΛΑΡΙΣΑΣ | F10: 16 | I10: =IF(D10>" ",IF(F10>=0,F10+tmp!C28,tmp!C28),0) -> 16.00159781 | J10: 0.001301747215 | K10: =TRIM(D10) -> ΚΑΡΑΟΥΛΑΝΗΣ ΒΑΣΙΛΕΙΟΣ
A11: 9 | C11: 37979 | D11: ΧΑΤΖΟΠΟΥΛΟΣ ΒΑΣΙΛΕΙΟΣ | E11: Α.Γ.Ο. ΦΙΛΙΠΠΙΑΔΑΣ | F11: 15 | I11: =IF(D11>" ",IF(F11>=0,F11+tmp!C22,tmp!C22),0) -> 15.00439678 | J11: 0.003716204021 | K11: =TRIM(D11) -> ΧΑΤΖΟΠΟΥΛΟΣ ΒΑΣΙΛΕΙΟΣ
A12: 10 | C12: 33122 | D12: ΑΦΑΛΩΝΙΑΤΗΣ ΘΑΝΟΣ | E12: Α.Ε.Τ. ΝΙΚΗ ΠΑΤΡΩΝ | F12: 14 | I12: =IF(D12>" ",IF(F12>=0,F12+tmp!C51,tmp!C51),0) -> 14.00058811 | J12: 0.0035037586 | K12: =TRIM(D12) -> ΑΦΑΛΩΝΙΑΤΗΣ ΘΑΝΟΣ
A13: 11 | C13: 37434 | D13: ΚΑΤΑΠΟΔΗΣ ΓΙΩΡΓΟΣ | E13: ΑΟΑ ΠΑΤΡΩΝ | F13: 13 | I13: =IF(D13>" ",IF(F13>=0,F13+tmp!C27,tmp!C27),0) -> 13.00026878 | J13: 0.004390888976 | K13: =TRIM(D13) -> ΚΑΤΑΠΟΔΗΣ ΓΙΩΡΓΟΣ
A14: 12 | C14: 60000 | D14: ΜΟΣΧΟΒΙΝΟΣ ΑΛΕΞΙΟΣ | E14: Α.Σ. ΑΣΤΕΡΑΣ ΠΕΝΤΕΛΙΚΟΥ | F14: 12 | I14: =IF(D14>" ",IF(F14>=0,F14+tmp!C24,tmp!C24),0) -> 12.00015897 | J14: 0.001024232664 | K14: =TRIM(D14) -> ΜΟΣΧΟΒΙΝΟΣ ΑΛΕΞΙΟΣ
A15: 13 | C15: 33992 | D15: ΛΑΜΠΡΟΠΟΥΛΟΣ ΑΓΓΕΛΟΣ | E15: ΑΕΚ ΤΡΙΠΟΛΗΣ | F15: 11 | I15: =IF(D15>" ",IF(F15>=0,F15+tmp!C40,tmp!C40),0) -> 11.00403171 | J15: 0.003403715664 | K15: =TRIM(D15) -> ΛΑΜΠΡΟΠΟΥΛΟΣ ΑΓΓΕΛΟΣ
A16: 14 | C16: 32430 | D16: ΔΗΜΟΠΟΥΛΟΣ ΝΙΚΟΛΑΣ | E16: Α.Ε.Τ. ΝΙΚΗ ΠΑΤΡΩΝ | F16: 10 | I16: =IF(D16>" ",IF(F16>=0,F16+tmp!C44,tmp!C44),0) -> 10.00440889 | J16: 0.003125897704 | K16: =TRIM(D16) -> ΔΗΜΟΠΟΥΛΟΣ ΝΙΚΟΛΑΣ
A17: 15 | C17: 35978 | D17: ΔΗΜΗΤΡΙΟΥ ΓΙΩΡΓΟΣ | E17: ΑΟΑ ΠΑΠΑΓΟΥ | I17: =IF(D17>" ",IF(F17>=0,F17+tmp!C35,tmp!C35),0) -> 0.004471277091 | J17: 0.0022353462 | K17: =TRIM(D17) -> ΔΗΜΗΤΡΙΟΥ ΓΙΩΡΓΟΣ
A18: 16 | C18: 37664 | D18: ΚΑΥΜΕΝΑΚΗΣ ΑΡΙΣΤΟΤΕΛΗΣ | E18: Ο.Α. ΧΑΝΙΩΝ | I18: =IF(D18>" ",IF(F18>=0,F18+tmp!C11,tmp!C11),0) -> 0.004388589126 | J18: 0.001261425602 | K18: =TRIM(D18) -> ΚΑΥΜΕΝΑΚΗΣ ΑΡΙΣΤΟΤΕΛΗΣ
A19: 17 | C19: 34016 | D19: ΜΠΟΝΙΚΟΣ ΣΠΥΡΟΣ | E19: ΖΑΚΥΝΘΙΝΟΣ Α.Ο.Α. | I19: =IF(D19>" ",IF(F19>=0,F19+tmp!C12,tmp!C12),0) -> 0.003403715664 | J19: 0.001145824801 | K19: =TRIM(D19) -> ΜΠΟΝΙΚΟΣ ΣΠΥΡΟΣ
A20: 18 | C20: 37253 | D20: ΓΙΑΝΝΑΚΟΠΟΥΛΟΣ ΔΙΟΝΥΣΙΟΣ | E20: Α. Σ. ΚΟΛΛΕΓΙΟΥ ΝΤΕΡΗ | I20: =IF(D20>" ",IF(F20>=0,F20+tmp!C7,tmp!C7),0) -> 0.003146274625 | J20: 0.0005256974938 | K20: =TRIM(D20) -> ΓΙΑΝΝΑΚΟΠΟΥΛΟΣ ΔΙΟΝΥΣΙΟΣ
A21: 19 | C21: 37254 | D21: ΤΖΙΤΖΙΜΙΚΑΣ ΓΕΩΡΓΙΟΣ | E21: Α.Ο. ΚΟΛΕΓΙΟΥ ΝΤΕΡΗ | I21: =IF(D21>" ",IF(F21>=0,F21+tmp!C38,tmp!C38),0) -> 0.002576157368 | J21: 0.002231131108 | K21: =TRIM(D21) -> ΤΖΙΤΖΙΜΙΚΑΣ ΓΕΩΡΓΙΟΣ
A22: 20 | C22: 31968 | D22: ΨΑΡΑΚΗΣ ΓΙΑΝΝΗΣ | E22: ΚΙΑΤΟ | I22: =IF(D22>" ",IF(F22>=0,F22+tmp!C46,tmp!C46),0) -> 0.001645775757 | J22: 0.0011876593 | K22: =TRIM(D22) -> ΨΑΡΑΚΗΣ ΓΙΑΝΝΗΣ
A23: 21 | C23: 35560 | D23: ΔΑΝΙΗΛΟΓΛΟΥ ΓΙΩΡΓΟΣ | E23: Ο.Α. ΓΟΥΔΗ | I23: =IF(D23>" ",IF(F23>=0,F23+tmp!C10,tmp!C10),0) -> 0.001024232664 | J23: 0.002069497339 | K23: =TRIM(D23) -> ΔΑΝΙΗΛΟΓΛΟΥ ΓΙΩΡΓΟΣ
A24: 22 | C24: 34921 | D24: ΜΕΓΑΛΟΓΙΑΝΝΗΣ ΚΩΝΣΤΑΝΤΙΝΟΣ | E24: ΑΙΟΛΟΣ ΑΘΛ. ΛΕΣΧΗ ΙΛΙΟΥ | I24: =IF(D24>" ",IF(F24>=0,F24+tmp!C32,tmp!C32),0) -> 0.0006518487386 | J24: 0.003867724069 | K24: =TRIM(D24) -> ΜΕΓΑΛΟΓΙΑΝΝΗΣ ΚΩΝΣΤΑΝΤΙΝΟΣ
A25: 23 | I25: =IF(D25>" ",IF(F25>=0,F25+tmp!C13,tmp!C13),0) -> 0 | J25: 0.0001589658724 | K25: =TRIM(D25) -> 
A26: 24 | I26: =IF(D26>" ",IF(F26>=0,F26+tmp!C5,tmp!C5),0) -> 0 | J26: 0.002476471478 | K26: =TRIM(D26) -> 
A27: 25 | I27: =IF(D27>" ",IF(F27>=0,F27+tmp!C50,tmp!C50),0) -> 0 | J27: 0.00226565647 | K27: =TRIM(D27) -> 
A28: 26 | I28: =IF(D28>" ",IF(F28>=0,F28+tmp!C25,tmp!C25),0) -> 0 | J28: 0.0002687772641 | K28: =TRIM(D28) -> 
A29: 27 | I29: =IF(D29>" ",IF(F29>=0,F29+tmp!C47,tmp!C47),0) -> 0 | J29: 0.001597812772 | K29: =TRIM(D29) -> 
A30: 28 | I30: =IF(D30>" ",IF(F30>=0,F30+tmp!C4,tmp!C4),0) -> 0 | J30: 0.001763329102 | K30: =TRIM(D30) -> 
A31: 29 | I31: =IF(D31>" ",IF(F31>=0,F31+tmp!C45,tmp!C45),0) -> 0 | J31: 0.0008400634015 | K31: =TRIM(D31) -> 
A32: 30 | I32: =IF(D32>" ",IF(F32>=0,F32+tmp!C16,tmp!C16),0) -> 0 | J32: 0.00227932932 | K32: =TRIM(D32) -> 
A33: 31 | I33: =IF(D33>" ",IF(F33>=0,F33+tmp!C18,tmp!C18),0) -> 0 | J33: 0.0006518487386 | K33: =TRIM(D33) -> 
A34: 32 | I34: =IF(D34>" ",IF(F34>=0,F34+tmp!C20,tmp!C20),0) -> 0 | J34: 0.00363790181 | K34: =TRIM(D34) -> 
A35: 33 | I35: =IF(D35>" ",IF(F35>=0,F35+tmp!C15,tmp!C15),0) -> 0 | J35: 0.002916478743 | K35: =TRIM(D35) -> 
A36: 34 | I36: =IF(D36>" ",IF(F36>=0,F36+tmp!C19,tmp!C19),0) -> 0 | J36: 0.004471277091 | K36: =TRIM(D36) -> 
A37: 35 | I37: =IF(D37>" ",IF(F37>=0,F37+tmp!C48,tmp!C48),0) -> 0 | J37: 0.004139639331 | K37: =TRIM(D37) -> 
A38: 36 | I38: =IF(D38>" ",IF(F38>=0,F38+tmp!C39,tmp!C39),0) -> 0 | J38: 0.002722648385 | K38: =TRIM(D38) -> 
A39: 37 | I39: =IF(D39>" ",IF(F39>=0,F39+tmp!C17,tmp!C17),0) -> 0 | J39: 0.002576157368 | K39: =TRIM(D39) -> 
A40: 38 | I40: =IF(D40>" ",IF(F40>=0,F40+tmp!C3,tmp!C3),0) -> 0 | J40: 0.003649351735 | K40: =TRIM(D40) -> 
A41: 39 | I41: =IF(D41>" ",IF(F41>=0,F41+tmp!C36,tmp!C36),0) -> 0 | J41: 0.004031712655 | K41: =TRIM(D41) -> 
A42: 40 | I42: =IF(D42>" ",IF(F42>=0,F42+tmp!C21,tmp!C21),0) -> 0 | J42: 0.0006547730034 | K42: =TRIM(D42) -> 
A43: 41 | I43: =IF(D43>" ",IF(F43>=0,F43+tmp!C2,tmp!C2),0) -> 0 | J43: 0.000793284379 | K43: =TRIM(D43) -> 
A44: 42 | I44: =IF(D44>" ",IF(F44>=0,F44+tmp!C29,tmp!C29),0) -> 0 | J44: 0.004443441395 | K44: =TRIM(D44) -> 
A45: 43 | I45: =IF(D45>" ",IF(F45>=0,F45+tmp!C52,tmp!C52),0) -> 0 | J45: 0.00440888908 | K45: =TRIM(D45) -> 
A46: 44 | I46: =IF(D46>" ",IF(F46>=0,F46+tmp!C41,tmp!C41),0) -> 0 | J46: 0.0003949713175 | K46: =TRIM(D46) -> 
A47: 45 | I47: =IF(D47>" ",IF(F47>=0,F47+tmp!C23,tmp!C23),0) -> 0 | J47: 0.001645775757 | K47: =TRIM(D47) -> 
A48: 46 | I48: =IF(D48>" ",IF(F48>=0,F48+tmp!C42,tmp!C42),0) -> 0 | J48: 0.0043893548 | K48: =TRIM(D48) -> 
A49: 47 | I49: =IF(D49>" ",IF(F49>=0,F49+tmp!C9,tmp!C9),0) -> 0 | J49: 0.003602150429 | K49: =TRIM(D49) -> 
A50: 48 | I50: =IF(D50>" ",IF(F50>=0,F50+tmp!C26,tmp!C26),0) -> 0 | J50: 0.00282160945 | K50: =TRIM(D50) -> 
A51: 49 | I51: =IF(D51>" ",IF(F51>=0,F51+tmp!C31,tmp!C31),0) -> 0 | J51: 9.920192333e-05 | K51: =TRIM(D51) -> 
A52: 50 | I52: =IF(D52>" ",IF(F52>=0,F52+tmp!C30,tmp!C30),0) -> 0 | J52: 0.0005881134185 | K52: =TRIM(D52) -> 
A53: 51 | I53: =IF(D53>" ",IF(F53>=0,F53+tmp!C6,tmp!C6),0) -> 0 | J53: 0.002996621548 | K53: =TRIM(D53) -> 
A54: 52 | I54: =IF(D54>" ",IF(F54>=0,F54+tmp!C14,tmp!C14),0) -> 0 | J54: 0.000290582207 | K54: =TRIM(D54) -> 
A55: 53 | I55: =IF(D55>" ",IF(F55>=0,F55+tmp!C54,tmp!C54),0) -> 0 | J55: 0.002061580676 | K55: =TRIM(D55) -> 
A56: 54 | I56: =IF(D56>" ",IF(F56>=0,F56+tmp!C56,tmp!C56),0) -> 0 | J56: 9.166444063e-05 | K56: =TRIM(D56) -> 
A57: 55 | I57: =IF(D57>" ",IF(F57>=0,F57+tmp!C55,tmp!C55),0) -> 0 | J57: 0.004435431899 | K57: =TRIM(D57) -> 
A58: 56 | I58: =IF(D58>" ",IF(F58>=0,F58+tmp!C57,tmp!C57),0) -> 0 | J58: 0.0003718968951 | K58: =TRIM(D58) -> 
A59: 57 | I59: =IF(D59>" ",IF(F59>=0,F59+tmp!C58,tmp!C58),0) -> 0 | J59: 0.002049848342 | K59: =TRIM(D59) -> 
A60: 58 | I60: =IF(D60>" ",IF(F60>=0,F60+tmp!C59,tmp!C59),0) -> 0 | J60: 0.003142819704 | K60: =TRIM(D60) -> 
A61: 59 | I61: =IF(D61>" ",IF(F61>=0,F61+tmp!C60,tmp!C60),0) -> 0 | J61: 0.00243443337 | K61: =TRIM(D61) -> 
A62: 60 | I62: =IF(D62>" ",IF(F62>=0,F62+tmp!C61,tmp!C61),0) -> 0 | J62: 0.002122235773 | K62: =TRIM(D62) -> 
A63: 61 | I63: =IF(D63>" ",IF(F63>=0,F63+tmp!C62,tmp!C62),0) -> 0 | J63: 0.002607145972 | K63: =TRIM(D63) -> 
A64: 62 | I64: =IF(D64>" ",IF(F64>=0,F64+tmp!C63,tmp!C63),0) -> 0 | J64: 0.002502009365 | K64: =TRIM(D64) -> 
A65: 63 | I65: =IF(D65>" ",IF(F65>=0,F65+tmp!C64,tmp!C64),0) -> 0 | J65: 0.002132213746 | K65: =TRIM(D65) -> 
A66: 64 | I66: =IF(D66>" ",IF(F66>=0,F66+tmp!C65,tmp!C65),0) -> 0 | J66: 0.004319046889 | K66: =TRIM(D66) -> 
B69: Walk over | E69: med
B70: α/α | C70: Α.Μ. | D70: Ονοματεπώνυμο | E70: Ν ή Ο | H70: =Setup!$B$10 -> Στέφος Αλέξης
B71: 1
B72: 2
B73: 3
B74: 4
B75: 5
B76: 6
B77: 7
B78: 8
B79: 9
B80: 10

Sheet Draw
A1: =Setup!B3&", "&Setup!B4&", "&Setup!B6&", "&Setup!B8&"-"&Setup!B9 -> ΕΦΟΑ, ΠΑΝΕΛΛΑΔΙΚΟ U10, ΑΕΤ ΝΙΚΗ ΠΑΤΡΩΝ, 24-25 OKT 2015 | T1: =Setup!B7 -> A-A C
B2: =Setup!B18 -> 42 | I2: p1 | N2: p2 | P2: p3 | R2: p4 | T2: p5-6
J3: 64 | N3: 32 | P3: 16 | R3: 8 | T3: 4 & 2
A4: α/α | C4: ByeOrder | D4: ByeSum | E4: ByeCnt | F4: από | G4: seed | H4: Pts | I4: Α.Μ. | J4: Ονοματεπώνυμο | K4: επώνυμο | L4: Σύλλογος
A5: 1 | B5: 1 | E5: 0 | F5: =IF(NOT($G5="-"),VLOOKUP($G5,DrawPrep!$A$3:$F$66,2,FALSE),"") -> 0 | G5: =VLOOKUP($B5,Setup!$K$2:$L$65,2,FALSE) -> 1 | H5: =IF($G5>0,VLOOKUP($G5,DrawPrep!$A$3:$F$66,6,FALSE),0) -> 23 | I5: =IF(Setup!$B$24="#",0,IF($G5>0,VLOOKUP($G5,DrawPrep!$A$3:$F$66,3,FALSE),0)) -> 36587 | J5: =IF($I5>0,VLOOKUP($I5,DrawPrep!$C$3:$F$66,2,FALSE),"bye") -> ΙΑΚΩΒΑΚΗΣ ΕΛΕΥΘΕΡΙΟΣ | K5: =IF(NOT(I5>0),"", IF(ISERROR(FIND("-",J5)), LEFT(J5,FIND(" ",J5)-1), IF(FIND("-",J5)>FIND(" ",J5),LEFT(J5,FIND(" ",J5)-1), LEFT(J5,FIND("-",J5)-1) ))) -> ΙΑΚΩΒΑΚΗΣ | L5: =IF($I5>0,VLOOKUP($I5,DrawPrep!$C$3:$F$66,3,FALSE),"") -> Ο.Α. ΦΟΙΒΟΣ ΛΑΡΙΣΑΣ | N5: =UPPER(IF($A$2="R",IF(OR(M5=1,M5="a"),I5,IF(OR(M5=2,M5="b"),I6,"")),IF(OR(M5=1,M5="1"),K5,IF(OR(M5=2,M5="b"),K6,"")))) -> 
A6: 2 | B6: =1-D6+16 -> 16 | C6: =B5 -> 1 | D6: =E6 -> 1 | E6: =IF($B$2>=C6,1,0) -> 1 | F6: =IF(NOT($G6="-"),VLOOKUP($G6,DrawPrep!$A$3:$F$66,2,FALSE),"") ->  | G6: =IF($B$2>=C6,"-",VLOOKUP($B6,Setup!$K$2:$L$65,2,FALSE)) -> - | H6: =IF(NOT($G6="-"),VLOOKUP($G6,DrawPrep!$A$3:$F$66,6,FALSE),0) -> 0 | I6: =IF(Setup!$B$24="#",0,IF(NOT($G6="-"),VLOOKUP($G6,DrawPrep!$A$3:$F$66,3,FALSE),0)) -> 0 | J6: =IF($I6>0,VLOOKUP($I6,DrawPrep!$C$3:$F$66,2,FALSE),"bye") -> bye | K6: =IF(NOT(I6>0),"", IF(ISERROR(FIND("-",J6)), LEFT(J6,FIND(" ",J6)-1), IF(FIND("-",J6)>FIND(" ",J6),LEFT(J6,FIND(" ",J6)-1), LEFT(J6,FIND("-",J6)-1) ))) ->  | L6: =IF($I6>0,VLOOKUP($I6,DrawPrep!$C$3:$F$66,3,FALSE),"") ->  | P6: =UPPER(IF($A$2="R",IF(OR(O6=1,O6="a"),N5,IF(OR(O6=2,O6="b"),N7,"")),IF(OR(O6=1,O6="a"),N5,IF(OR(O6=2,O6="b"),N7,"")))) -> 
A7: 3 | B7: =2-D7+16 -> 17 | D7: =D6+E7 -> 1 | E7: 0 | F7: =IF(NOT($G7="-"),VLOOKUP($G7,DrawPrep!$A$3:$F$66,2,FALSE),"") -> 0 | G7: =VLOOKUP($B7,Setup!$K$2:$L$65,2,FALSE) -> 19 | H7: =IF($G7>0,VLOOKUP($G7,DrawPrep!$A$3:$F$66,6,FALSE),0) -> 0 | I7: =IF(Setup!$B$24="#",0,IF($G7>0,VLOOKUP($G7,DrawPrep!$A$3:$F$66,3,FALSE),0)) -> 37254 | J7: =IF($I7>0,VLOOKUP($I7,DrawPrep!$C$3:$F$66,2,FALSE),"bye") -> ΤΖΙΤΖΙΜΙΚΑΣ ΓΕΩΡΓΙΟΣ | K7: ΤΖΙΤΖΙΜΙΚΑΣ | L7: =IF($I7>0,VLOOKUP($I7,DrawPrep!$C$3:$F$66,3,FALSE),"") -> Α.Ο. ΚΟΛΕΓΙΟΥ ΝΤΕΡΗ | N7: =UPPER(IF($A$2="R",IF(OR(M7=1,M7="a"),I7,IF(OR(M7=2,M7="b"),I8,"")),IF(OR(M7=1,M7="a"),K7,IF(OR(M7=2,M7="b"),K8,"")))) -> 
A8: 4 | B8: =3-D8+16 -> 17 | C8: 29 | D8: =D7+E8 -> 2 | E8: =IF($B$2>=C8,1,0) -> 1 | F8: =IF(NOT($G8="-"),VLOOKUP($G8,DrawPrep!$A$3:$F$66,2,FALSE),"") ->  | G8: =IF($B$2>=C8,"-",VLOOKUP($B8,Setup!$K$2:$L$65,2,FALSE)) -> - | H8: =IF(NOT($G8="-"),VLOOKUP($G8,DrawPrep!$A$3:$F$66,6,FALSE),0) -> 0 | I8: =IF(Setup!$B$24="#",0,IF(NOT($G8="-"),VLOOKUP($G8,DrawPrep!$A$3:$F$66,3,FALSE),0)) -> 0 | J8: =IF($I8>0,VLOOKUP($I8,DrawPrep!$C$3:$F$66,2,FALSE),"bye") -> bye | L8: =IF($I8>0,VLOOKUP($I8,DrawPrep!$C$3:$F$66,3,FALSE),"") ->  | R8: =UPPER(IF($A$2="R",IF(OR(Q8=1,Q8="a"),P6,IF(OR(Q8=2,Q8="b"),P10,"")),IF(OR(Q8=1,Q8="a"),P6,IF(OR(Q8=2,Q8="b"),P10,"")))) -> 
A9: 5 | B9: =4-D9+16 -> 18 | D9: 2 | E9: 0 | F9: =IF(NOT($G9="-"),VLOOKUP($G9,DrawPrep!$A$3:$F$66,2,FALSE),"") -> 0 | G9: =VLOOKUP($B9,Setup!$K$2:$L$65,2,FALSE) -> 20 | H9: =IF($G9>0,VLOOKUP($G9,DrawPrep!$A$3:$F$66,6,FALSE),0) -> 0 | I9: =IF(Setup!$B$24="#",0,IF($G9>0,VLOOKUP($G9,DrawPrep!$A$3:$F$66,3,FALSE),0)) -> 31968 | J9: =IF($I9>0,VLOOKUP($I9,DrawPrep!$C$3:$F$66,2,FALSE),"bye") -> ΨΑΡΑΚΗΣ ΓΙΑΝΝΗΣ | K9: ΨΑΡΑΚΗΣ | L9: =IF($I9>0,VLOOKUP($I9,DrawPrep!$C$3:$F$66,3,FALSE),"") -> ΚΙΑΤΟ | N9: =UPPER(IF($A$2="R",IF(OR(M9=1,M9="a"),I9,IF(OR(M9=2,M9="b"),I10,"")),IF(OR(M9=1,M9="a"),K9,IF(OR(M9=2,M9="b"),K10,"")))) -> 
A10: 6 | B10: =5-D10+16 -> 18 | C10: 17 | D10: 3 | E10: =IF($B$2>=C10,1,0) -> 1 | F10: =IF(NOT($G10="-"),VLOOKUP($G10,DrawPrep!$A$3:$F$66,2,FALSE),"") ->  | G10: =IF($B$2>=C10,"-",VLOOKUP($B10,Setup!$K$2:$L$65,2,FALSE)) -> - | H10: =IF(NOT($G10="-"),VLOOKUP($G10,DrawPrep!$A$3:$F$66,6,FALSE),0) -> 0 | I10: =IF(Setup!$B$24="#",0,IF(NOT($G10="-"),VLOOKUP($G10,DrawPrep!$A$3:$F$66,3,FALSE),0)) -> 0 | J10: =IF($I10>0,VLOOKUP($I10,DrawPrep!$C$3:$F$66,2,FALSE),"bye") -> bye | L10: =IF($I10>0,VLOOKUP($I10,DrawPrep!$C$3:$F$66,3,FALSE),"") ->  | P10: =UPPER(IF($A$2="R",IF(OR(O10=1,O10="a"),N9,IF(OR(O10=2,O10="b"),N11,"")),IF(OR(O10=1,O10="a"),N9,IF(OR(O10=2,O10="b"),N11,"")))) -> 
A11: 7 | B11: =6-D11+16 -> 18 | C11: =B12 -> 13 | D11: 4 | E11: =IF($B$2>=C11,1,0) -> 1 | F11: =IF(NOT($G11="-"),VLOOKUP($G11,DrawPrep!$A$3:$F$66,2,FALSE),"") ->  | G11: =IF($B$2>=C11,"-",VLOOKUP($B11,Setup!$K$2:$L$65,2,FALSE)) -> - | H11: =IF(NOT($G11="-"),VLOOKUP($G11,DrawPrep!$A$3:$F$66,6,FALSE),0) -> 0 | I11: =IF(Setup!$B$24="#",0,IF(NOT($G11="-"),VLOOKUP($G11,DrawPrep!$A$3:$F$66,3,FALSE),0)) -> 0 | J11: =IF($I11>0,VLOOKUP($I11,DrawPrep!$C$3:$F$66,2,FALSE),"bye") -> bye | L11: =IF($I11>0,VLOOKUP($I11,DrawPrep!$C$3:$F$66,3,FALSE),"") ->  | N11: =UPPER(IF($A$2="R",IF(OR(M11=1,M11="a"),I11,IF(OR(M11=2,M11="b"),I12,"")),IF(OR(M11=1,M11="a"),K11,IF(OR(M11=2,M11="b"),K12,"")))) -> 
A12: 8 | B12: =VALUE(Setup!E15) -> 13 | D12: 4 | E12: 0 | F12: =IF(NOT($G12="-"),VLOOKUP($G12,DrawPrep!$A$3:$F$66,2,FALSE),"") -> 0 | G12: =VLOOKUP($B12,Setup!$K$2:$L$65,2,FALSE) -> 13 | H12: =IF($G12>0,VLOOKUP($G12,DrawPrep!$A$3:$F$66,6,FALSE),0) -> 11 | I12: =IF(Setup!$B$24="#",0,IF($G12>0,VLOOKUP($G12,DrawPrep!$A$3:$F$66,3,FALSE),0)) -> 33992 | J12: =IF($I12>0,VLOOKUP($I12,DrawPrep!$C$3:$F$66,2,FALSE),"bye") -> ΛΑΜΠΡΟΠΟΥΛΟΣ ΑΓΓΕΛΟΣ | K12: ΛΑΜΠΡΟΠΟΥΛΟΣ | L12: =IF($I12>0,VLOOKUP($I12,DrawPrep!$C$3:$F$66,3,FALSE),"") -> ΑΕΚ ΤΡΙΠΟΛΗΣ | T12: =UPPER(IF($A$2="R",IF(OR(S12=1,S12="a"),R8,IF(OR(S12=2,S12="b"),R16,"")),IF(OR(S12=1,S12="a"),R8,IF(OR(S12=2,S12="b"),R16,"")))) -> 
A13: 9 | B13: =VALUE(Setup!E10) -> 12 | D13: 4 | E13: 0 | F13: =IF(NOT($G13="-"),VLOOKUP($G13,DrawPrep!$A$3:$F$66,2,FALSE),"") -> 0 | G13: =VLOOKUP($B13,Setup!$K$2:$L$65,2,FALSE) -> 12 | H13: =IF($G13>0,VLOOKUP($G13,DrawPrep!$A$3:$F$66,6,FALSE),0) -> 12 | I13: =IF(Setup!$B$24="#",0,IF($G13>0,VLOOKUP($G13,DrawPrep!$A$3:$F$66,3,FALSE),0)) -> 60000 | J13: =IF($I13>0,VLOOKUP($I13,DrawPrep!$C$3:$F$66,2,FALSE),"bye") -> ΜΟΣΧΟΒΙΝΟΣ ΑΛΕΞΙΟΣ | K13: ΜΟΣΧΟΒΙΝΟΣ | L13: =IF($I13>0,VLOOKUP($I13,DrawPrep!$C$3:$F$66,3,FALSE),"") -> Α.Σ. ΑΣΤΕΡΑΣ ΠΕΝΤΕΛΙΚΟΥ | N13: =UPPER(IF($A$2="R",IF(OR(M13=1,M13="a"),I13,IF(OR(M13=2,M13="b"),I14,"")),IF(OR(M13=1,M13="a"),K13,IF(OR(M13=2,M13="b"),K14,"")))) -> 
A14: 10 | B14: =7-D14+16 -> 18 | C14: =B13 -> 12 | D14: 5 | E14: =IF($B$2>=C14,1,0) -> 1 | F14: =IF(NOT($G14="-"),VLOOKUP($G14,DrawPrep!$A$3:$F$66,2,FALSE),"") ->  | G14: =IF($B$2>=C14,"-",VLOOKUP($B14,Setup!$K$2:$L$65,2,FALSE)) -> - | H14: =IF(NOT($G14="-"),VLOOKUP($G14,DrawPrep!$A$3:$F$66,6,FALSE),0) -> 0 | I14: =IF(Setup!$B$24="#",0,IF(NOT($G14="-"),VLOOKUP($G14,DrawPrep!$A$3:$F$66,3,FALSE),0)) -> 0 | J14: =IF($I14>0,VLOOKUP($I14,DrawPrep!$C$3:$F$66,2,FALSE),"bye") -> bye | L14: =IF($I14>0,VLOOKUP($I14,DrawPrep!$C$3:$F$66,3,FALSE),"") ->  | P14: =UPPER(IF($A$2="R",IF(OR(O14=1,O14="a"),N13,IF(OR(O14=2,O14="b"),N15,"")),IF(OR(O14=1,O14="a"),N13,IF(OR(O14=2,O14="b"),N15,"")))) -> 
A15: 11 | B15: =8-D15+16 -> 19 | D15: 5 | E15: 0 | F15: =IF(NOT($G15="-"),VLOOKUP($G15,DrawPrep!$A$3:$F$66,2,FALSE),"") -> 0 | G15: =VLOOKUP($B15,Setup!$K$2:$L$65,2,FALSE) -> 21 | H15: =IF($G15>0,VLOOKUP($G15,DrawPrep!$A$3:$F$66,6,FALSE),0) -> 0 | I15: =IF(Setup!$B$24="#",0,IF($G15>0,VLOOKUP($G15,DrawPrep!$A$3:$F$66,3,FALSE),0)) -> 35560 | J15: =IF($I15>0,VLOOKUP($I15,DrawPrep!$C$3:$F$66,2,FALSE),"bye") -> ΔΑΝΙΗΛΟΓΛΟΥ ΓΙΩΡΓΟΣ | K15: ΔΑΝΙΗΛΟΓΛΟΥ | L15: =IF($I15>0,VLOOKUP($I15,DrawPrep!$C$3:$F$66,3,FALSE),"") -> Ο.Α. ΓΟΥΔΗ | N15: =UPPER(IF($A$2="R",IF(OR(M15=1,M15="a"),I15,IF(OR(M15=2,M15="b"),I16,"")),IF(OR(M15=1,M15="a"),K15,IF(OR(M15=2,M15="b"),K16,"")))) -> 
A16: 12 | B16: =9-D16+16 -> 19 | C16: 25 | D16: 6 | E16: =IF($B$2>=C16,1,0) -> 1 | F16: =IF(NOT($G16="-"),VLOOKUP($G16,DrawPrep!$A$3:$F$66,2,FALSE),"") ->  | G16: =IF($B$2>=C16,"-",VLOOKUP($B16,Setup!$K$2:$L$65,2,FALSE)) -> - | H16: =IF(NOT($G16="-"),VLOOKUP($G16,DrawPrep!$A$3:$F$66,6,FALSE),0) -> 0 | I16: =IF(Setup!$B$24="#",0,IF(NOT($G16="-"),VLOOKUP($G16,DrawPrep!$A$3:$F$66,3,FALSE),0)) -> 0 | J16: =IF($I16>0,VLOOKUP($I16,DrawPrep!$C$3:$F$66,2,FALSE),"bye") -> bye | L16: =IF($I16>0,VLOOKUP($I16,DrawPrep!$C$3:$F$66,3,FALSE),"") ->  | R16: =UPPER(IF($A$2="R",IF(OR(Q16=1,Q16="a"),P14,IF(OR(Q16=2,Q16="b"),P18,"")),IF(OR(Q16=1,Q16="a"),P14,IF(OR(Q16=2,Q16="b"),P18,"")))) -> 
A17: 13 | B17: =10-D17+16 -> 20 | D17: 6 | E17: 0 | F17: =IF(NOT($G17="-"),VLOOKUP($G17,DrawPrep!$A$3:$F$66,2,FALSE),"") -> 0 | G17: =VLOOKUP($B17,Setup!$K$2:$L$65,2,FALSE) -> 18 | H17: =IF($G17>0,VLOOKUP($G17,DrawPrep!$A$3:$F$66,6,FALSE),0) -> 0 | I17: =IF(Setup!$B$24="#",0,IF($G17>0,VLOOKUP($G17,DrawPrep!$A$3:$F$66,3,FALSE),0)) -> 37253 | J17: =IF($I17>0,VLOOKUP($I17,DrawPrep!$C$3:$F$66,2,FALSE),"bye") -> ΓΙΑΝΝΑΚΟΠΟΥΛΟΣ ΔΙΟΝΥΣΙΟΣ | K17: ΓΙΑΝΝΑΚΟΠΟΥΛΟΣ | L17: =IF($I17>0,VLOOKUP($I17,DrawPrep!$C$3:$F$66,3,FALSE),"") -> Α. Σ. ΚΟΛΛΕΓΙΟΥ ΝΤΕΡΗ | N17: =UPPER(IF($A$2="R",IF(OR(M17=1,M17="a"),I17,IF(OR(M17=2,M17="b"),I18,"")),IF(OR(M17=1,M17="a"),K17,IF(OR(M17=2,M17="b"),K18,"")))) -> 
A18: 14 | B18: =11-D18+16 -> 20 | C18: 21 | D18: 7 | E18: =IF($B$2>=C18,1,0) -> 1 | F18: =IF(NOT($G18="-"),VLOOKUP($G18,DrawPrep!$A$3:$F$66,2,FALSE),"") ->  | G18: =IF($B$2>=C18,"-",VLOOKUP($B18,Setup!$K$2:$L$65,2,FALSE)) -> - | H18: =IF(NOT($G18="-"),VLOOKUP($G18,DrawPrep!$A$3:$F$66,6,FALSE),0) -> 0 | I18: =IF(Setup!$B$24="#",0,IF(NOT($G18="-"),VLOOKUP($G18,DrawPrep!$A$3:$F$66,3,FALSE),0)) -> 0 | J18: =IF($I18>0,VLOOKUP($I18,DrawPrep!$C$3:$F$66,2,FALSE),"bye") -> bye | L18: =IF($I18>0,VLOOKUP($I18,DrawPrep!$C$3:$F$66,3,FALSE),"") ->  | P18: =UPPER(IF($A$2="R",IF(OR(O18=1,O18="a"),N17,IF(OR(O18=2,O18="b"),N19,"")),IF(OR(O18=1,O18="a"),N17,IF(OR(O18=2,O18="b"),N19,"")))) -> 
A19: 15 | B19: =12-D19+16 -> 20 | C19: =B20 -> 7 | D19: 8 | E19: =IF($B$2>=C19,1,0) -> 1 | F19: =IF(NOT($G19="-"),VLOOKUP($G19,DrawPrep!$A$3:$F$66,2,FALSE),"") ->  | G19: =IF($B$2>=C19,"-",VLOOKUP($B19,Setup!$K$2:$L$65,2,FALSE)) -> - | H19: =IF(NOT($G19="-"),VLOOKUP($G19,DrawPrep!$A$3:$F$66,6,FALSE),0) -> 0 | I19: =IF(Setup!$B$24="#",0,IF(NOT($G19="-"),VLOOKUP($G19,DrawPrep!$A$3:$F$66,3,FALSE),0)) -> 0 | J19: =IF($I19>0,VLOOKUP($I19,DrawPrep!$C$3:$F$66,2,FALSE),"bye") -> bye | L19: =IF($I19>0,VLOOKUP($I19,DrawPrep!$C$3:$F$66,3,FALSE),"") ->  | N19: =UPPER(IF($A$2="R",IF(OR(M19=1,M19="a"),I19,IF(OR(M19=2,M19="b"),I20,"")),IF(OR(M19=1,M19="a"),K19,IF(OR(M19=2,M19="b"),K20,"")))) -> 
A20: 16 | B20: =VALUE(Setup!E5) -> 7 | D20: 8 | E20: 0 | F20: =IF(NOT($G20="-"),VLOOKUP($G20,DrawPrep!$A$3:$F$66,2,FALSE),"") -> 0 | G20: =VLOOKUP($B20,Setup!$K$2:$L$65,2,FALSE) -> 7 | H20: =IF($G20>0,VLOOKUP($G20,DrawPrep!$A$3:$F$66,6,FALSE),0) -> 17 | I20: =IF(Setup!$B$24="#",0,IF($G20>0,VLOOKUP($G20,DrawPrep!$A$3:$F$66,3,FALSE),0)) -> 37444 | J20: =IF($I20>0,VLOOKUP($I20,DrawPrep!$C$3:$F$66,2,FALSE),"bye") -> ΝΙΚΟΛΑΟΥ ΑΓΓΕΛΟΣ | K20: ΝΙΚΟΛΑΟΥ | L20: =IF($I20>0,VLOOKUP($I20,DrawPrep!$C$3:$F$66,3,FALSE),"") -> Α.Ε.Τ. ΝΙΚΗ ΠΑΤΡΩΝ | T20: =UPPER(IF($A$2="R",IF(OR(S20=1,S20="a"),T12,IF(OR(S20=2,S20="b"),T28,"")),IF(OR(S20=1,S20="a"),T12,IF(OR(S20=2,S20="b"),T28,"")))) -> 
A21: 17 | B21: =VALUE(Setup!E2) -> 3 | D21: 8 | E21: 0 | F21: =IF(NOT($G21="-"),VLOOKUP($G21,DrawPrep!$A$3:$F$66,2,FALSE),"") -> 0 | G21: =VLOOKUP($B21,Setup!$K$2:$L$65,2,FALSE) -> 3 | H21: =IF($G21>0,VLOOKUP($G21,DrawPrep!$A$3:$F$66,6,FALSE),0) -> 21 | I21: =IF(Setup!$B$24="#",0,IF($G21>0,VLOOKUP($G21,DrawPrep!$A$3:$F$66,3,FALSE),0)) -> 33991 | J21: =IF($I21>0,VLOOKUP($I21,DrawPrep!$C$3:$F$66,2,FALSE),"bye") -> ΛΑΜΠΡΟΠΟΥΛΟΣ ΜΙΧΑΛΗΣ | K21: ΛΑΜΠΡΟΠΟΥΛΟΣ | L21: =IF($I21>0,VLOOKUP($I21,DrawPrep!$C$3:$F$66,3,FALSE),"") -> ΑΕΚ ΤΡΙΠΟΛΗΣ | N21: =UPPER(IF($A$2="R",IF(OR(M21=1,M21="a"),I21,IF(OR(M21=2,M21="b"),I22,"")),IF(OR(M21=1,M21="a"),K21,IF(OR(M21=2,M21="b"),K22,"")))) -> 
A22: 18 | B22: =13-D22+16 -> 20 | C22: =B21 -> 3 | D22: 9 | E22: =IF($B$2>=C22,1,0) -> 1 | F22: =IF(NOT($G22="-"),VLOOKUP($G22,DrawPrep!$A$3:$F$66,2,FALSE),"") ->  | G22: =IF($B$2>=C22,"-",VLOOKUP($B22,Setup!$K$2:$L$65,2,FALSE)) -> - | H22: =IF(NOT($G22="-"),VLOOKUP($G22,DrawPrep!$A$3:$F$66,6,FALSE),0) -> 0 | I22: =IF(Setup!$B$24="#",0,IF(NOT($G22="-"),VLOOKUP($G22,DrawPrep!$A$3:$F$66,3,FALSE),0)) -> 0 | J22: =IF($I22>0,VLOOKUP($I22,DrawPrep!$C$3:$F$66,2,FALSE),"bye") -> bye | L22: =IF($I22>0,VLOOKUP($I22,DrawPrep!$C$3:$F$66,3,FALSE),"") ->  | P22: =UPPER(IF($A$2="R",IF(OR(O22=1,O22="a"),N21,IF(OR(O22=2,O22="b"),N23,"")),IF(OR(O22=1,O22="a"),N21,IF(OR(O22=2,O22="b"),N23,"")))) -> 
A23: 19 | B23: =14-D23+16 -> 21 | D23: 9 | E23: 0 | F23: =IF(NOT($G23="-"),VLOOKUP($G23,DrawPrep!$A$3:$F$66,2,FALSE),"") -> 0 | G23: =VLOOKUP($B23,Setup!$K$2:$L$65,2,FALSE) -> 22 | H23: =IF($G23>0,VLOOKUP($G23,DrawPrep!$A$3:$F$66,6,FALSE),0) -> 0 | I23: =IF(Setup!$B$24="#",0,IF($G23>0,VLOOKUP($G23,DrawPrep!$A$3:$F$66,3,FALSE),0)) -> 34921 | J23: =IF($I23>0,VLOOKUP($I23,DrawPrep!$C$3:$F$66,2,FALSE),"bye") -> ΜΕΓΑΛΟΓΙΑΝΝΗΣ ΚΩΝΣΤΑΝΤΙΝΟΣ | K23: ΜΕΓΑΛΟΓΙΑΝΝΗΣ | L23: =IF($I23>0,VLOOKUP($I23,DrawPrep!$C$3:$F$66,3,FALSE),"") -> ΑΙΟΛΟΣ ΑΘΛ. ΛΕΣΧΗ ΙΛΙΟΥ | N23: =UPPER(IF($A$2="R",IF(OR(M23=1,M23="a"),I23,IF(OR(M23=2,M23="b"),I24,"")),IF(OR(M23=1,M23="a"),K23,IF(OR(M23=2,M23="b"),K24,"")))) -> 
A24: 20 | B24: =15-D24+16 -> 21 | C24: 31 | D24: 10 | E24: =IF($B$2>=C24,1,0) -> 1 | F24: =IF(NOT($G24="-"),VLOOKUP($G24,DrawPrep!$A$3:$F$66,2,FALSE),"") ->  | G24: =IF($B$2>=C24,"-",VLOOKUP($B24,Setup!$K$2:$L$65,2,FALSE)) -> - | H24: =IF(NOT($G24="-"),VLOOKUP($G24,DrawPrep!$A$3:$F$66,6,FALSE),0) -> 0 | I24: =IF(Setup!$B$24="#",0,IF(NOT($G24="-"),VLOOKUP($G24,DrawPrep!$A$3:$F$66,3,FALSE),0)) -> 0 | J24: =IF($I24>0,VLOOKUP($I24,DrawPrep!$C$3:$F$66,2,FALSE),"bye") -> bye | L24: =IF($I24>0,VLOOKUP($I24,DrawPrep!$C$3:$F$66,3,FALSE),"") ->  | R24: =UPPER(IF($A$2="R",IF(OR(Q24=1,Q24="a"),P22,IF(OR(Q24=2,Q24="b"),P26,"")),IF(OR(Q24=1,Q24="a"),P22,IF(OR(Q24=2,Q24="b"),P26,"")))) -> 
A25: 21 | B25: =16-D25+16 -> 22 | D25: 10 | E25: 0 | F25: =IF(NOT($G25="-"),VLOOKUP($G25,DrawPrep!$A$3:$F$66,2,FALSE),"") -> 0 | G25: =VLOOKUP($B25,Setup!$K$2:$L$65,2,FALSE) -> 17 | H25: =IF($G25>0,VLOOKUP($G25,DrawPrep!$A$3:$F$66,6,FALSE),0) -> 0 | I25: =IF(Setup!$B$24="#",0,IF($G25>0,VLOOKUP($G25,DrawPrep!$A$3:$F$66,3,FALSE),0)) -> 34016 | J25: =IF($I25>0,VLOOKUP($I25,DrawPrep!$C$3:$F$66,2,FALSE),"bye") -> ΜΠΟΝΙΚΟΣ ΣΠΥΡΟΣ | K25: ΜΠΟΝΙΚΟΣ | L25: =IF($I25>0,VLOOKUP($I25,DrawPrep!$C$3:$F$66,3,FALSE),"") -> ΖΑΚΥΝΘΙΝΟΣ Α.Ο.Α. | N25: =UPPER(IF($A$2="R",IF(OR(M25=1,M25="a"),I25,IF(OR(M25=2,M25="b"),I26,"")),IF(OR(M25=1,M25="a"),K25,IF(OR(M25=2,M25="b"),K26,"")))) -> 
A26: 22 | B26: =17-D26+16 -> 22 | C26: 19 | D26: 11 | E26: =IF($B$2>=C26,1,0) -> 1 | F26: =IF(NOT($G26="-"),VLOOKUP($G26,DrawPrep!$A$3:$F$66,2,FALSE),"") ->  | G26: =IF($B$2>=C26,"-",VLOOKUP($B26,Setup!$K$2:$L$65,2,FALSE)) -> - | H26: =IF(NOT($G26="-"),VLOOKUP($G26,DrawPrep!$A$3:$F$66,6,FALSE),0) -> 0 | I26: =IF(Setup!$B$24="#",0,IF(NOT($G26="-"),VLOOKUP($G26,DrawPrep!$A$3:$F$66,3,FALSE),0)) -> 0 | J26: =IF($I26>0,VLOOKUP($I26,DrawPrep!$C$3:$F$66,2,FALSE),"bye") -> bye | L26: =IF($I26>0,VLOOKUP($I26,DrawPrep!$C$3:$F$66,3,FALSE),"") ->  | P26: =UPPER(IF($A$2="R",IF(OR(O26=1,O26="a"),N25,IF(OR(O26=2,O26="b"),N27,"")),IF(OR(O26=1,O26="a"),N25,IF(OR(O26=2,O26="b"),N27,"")))) -> 
A27: 23 | B27: =18-D27+16 -> 22 | C27: =B28 -> 15 | D27: 12 | E27: =IF($B$2>=C27,1,0) -> 1 | F27: =IF(NOT($G27="-"),VLOOKUP($G27,DrawPrep!$A$3:$F$66,2,FALSE),"") ->  | G27: =IF($B$2>=C27,"-",VLOOKUP($B27,Setup!$K$2:$L$65,2,FALSE)) -> - | H27: =IF(NOT($G27="-"),VLOOKUP($G27,DrawPrep!$A$3:$F$66,6,FALSE),0) -> 0 | I27: =IF(Setup!$B$24="#",0,IF(NOT($G27="-"),VLOOKUP($G27,DrawPrep!$A$3:$F$66,3,FALSE),0)) -> 0 | J27: =IF($I27>0,VLOOKUP($I27,DrawPrep!$C$3:$F$66,2,FALSE),"bye") -> bye | L27: =IF($I27>0,VLOOKUP($I27,DrawPrep!$C$3:$F$66,3,FALSE),"") ->  | N27: =UPPER(IF($A$2="R",IF(OR(M27=1,M27="a"),I27,IF(OR(M27=2,M27="b"),I28,"")),IF(OR(M27=1,M27="a"),K27,IF(OR(M27=2,M27="b"),K28,"")))) -> 
A28: 24 | B28: =VALUE(Setup!E16) -> 15 | D28: 12 | E28: 0 | F28: =IF(NOT($G28="-"),VLOOKUP($G28,DrawPrep!$A$3:$F$66,2,FALSE),"") -> 0 | G28: =VLOOKUP($B28,Setup!$K$2:$L$65,2,FALSE) -> 15 | H28: =IF($G28>0,VLOOKUP($G28,DrawPrep!$A$3:$F$66,6,FALSE),0) -> 0 | I28: =IF(Setup!$B$24="#",0,IF($G28>0,VLOOKUP($G28,DrawPrep!$A$3:$F$66,3,FALSE),0)) -> 35978 | J28: =IF($I28>0,VLOOKUP($I28,DrawPrep!$C$3:$F$66,2,FALSE),"bye") -> ΔΗΜΗΤΡΙΟΥ ΓΙΩΡΓΟΣ | K28: ΔΗΜΗΤΡΙΟΥ | L28: =IF($I28>0,VLOOKUP($I28,DrawPrep!$C$3:$F$66,3,FALSE),"") -> ΑΟΑ ΠΑΠΑΓΟΥ | T28: =UPPER(IF($A$2="R",IF(OR(S28=1,S28="a"),R24,IF(OR(S28=2,S28="b"),R32,"")),IF(OR(S28=1,S28="a"),R24,IF(OR(S28=2,S28="b"),R32,"")))) -> 
A29: 25 | B29: =VALUE(Setup!E11) -> 11 | D29: 12 | E29: 0 | F29: =IF(NOT($G29="-"),VLOOKUP($G29,DrawPrep!$A$3:$F$66,2,FALSE),"") -> 0 | G29: =VLOOKUP($B29,Setup!$K$2:$L$65,2,FALSE) -> 11 | H29: =IF($G29>0,VLOOKUP($G29,DrawPrep!$A$3:$F$66,6,FALSE),0) -> 13 | I29: =IF(Setup!$B$24="#",0,IF($G29>0,VLOOKUP($G29,DrawPrep!$A$3:$F$66,3,FALSE),0)) -> 37434 | J29: =IF($I29>0,VLOOKUP($I29,DrawPrep!$C$3:$F$66,2,FALSE),"bye") -> ΚΑΤΑΠΟΔΗΣ ΓΙΩΡΓΟΣ | K29: ΚΑΤΑΠΟΔΗΣ | L29: =IF($I29>0,VLOOKUP($I29,DrawPrep!$C$3:$F$66,3,FALSE),"") -> ΑΟΑ ΠΑΤΡΩΝ | N29: =UPPER(IF($A$2="R",IF(OR(M29=1,M29="a"),I29,IF(OR(M29=2,M29="b"),I30,"")),IF(OR(M29=1,M29="a"),K29,IF(OR(M29=2,M29="b"),K30,"")))) -> 
A30: 26 | B30: =19-D30+16 -> 22 | C30: =B29 -> 11 | D30: 13 | E30: =IF($B$2>=C30,1,0) -> 1 | F30: =IF(NOT($G30="-"),VLOOKUP($G30,DrawPrep!$A$3:$F$66,2,FALSE),"") ->  | G30: =IF($B$2>=C30,"-",VLOOKUP($B30,Setup!$K$2:$L$65,2,FALSE)) -> - | H30: =IF(NOT($G30="-"),VLOOKUP($G30,DrawPrep!$A$3:$F$66,6,FALSE),0) -> 0 | I30: =IF(Setup!$B$24="#",0,IF(NOT($G30="-"),VLOOKUP($G30,DrawPrep!$A$3:$F$66,3,FALSE),0)) -> 0 | J30: =IF($I30>0,VLOOKUP($I30,DrawPrep!$C$3:$F$66,2,FALSE),"bye") -> bye | L30: =IF($I30>0,VLOOKUP($I30,DrawPrep!$C$3:$F$66,3,FALSE),"") ->  | P30: =UPPER(IF($A$2="R",IF(OR(O30=1,O30="a"),N29,IF(OR(O30=2,O30="b"),N31,"")),IF(OR(O30=1,O30="a"),N29,IF(OR(O30=2,O30="b"),N31,"")))) -> 
A31: 27 | B31: =20-D31+16 -> 23 | D31: 13 | E31: 0 | F31: =IF(NOT($G31="-"),VLOOKUP($G31,DrawPrep!$A$3:$F$66,2,FALSE),"") ->  | G31: =VLOOKUP($B31,Setup!$K$2:$L$65,2,FALSE) ->  | H31: =IF($G31>0,VLOOKUP($G31,DrawPrep!$A$3:$F$66,6,FALSE),0) ->  | I31: =IF(Setup!$B$24="#",0,IF($G31>0,VLOOKUP($G31,DrawPrep!$A$3:$F$66,3,FALSE),0)) ->  | J31: =IF($I31>0,VLOOKUP($I31,DrawPrep!$C$3:$F$66,2,FALSE),"bye") ->  | L31: =IF($I31>0,VLOOKUP($I31,DrawPrep!$C$3:$F$66,3,FALSE),"") ->  | N31: =UPPER(IF($A$2="R",IF(OR(M31=1,M31="a"),I31,IF(OR(M31=2,M31="b"),I32,"")),IF(OR(M31=1,M31="a"),K31,IF(OR(M31=2,M31="b"),K32,"")))) -> 
A32: 28 | B32: =21-D32+16 -> 23 | C32: 27 | D32: 14 | E32: =IF($B$2>=C32,1,0) -> 1 | F32: =IF(NOT($G32="-"),VLOOKUP($G32,DrawPrep!$A$3:$F$66,2,FALSE),"") ->  | G32: =IF($B$2>=C32,"-",VLOOKUP($B32,Setup!$K$2:$L$65,2,FALSE)) -> - | H32: =IF(NOT($G32="-"),VLOOKUP($G32,DrawPrep!$A$3:$F$66,6,FALSE),0) -> 0 | I32: =IF(Setup!$B$24="#",0,IF(NOT($G32="-"),VLOOKUP($G32,DrawPrep!$A$3:$F$66,3,FALSE),0)) -> 0 | J32: =IF($I32>0,VLOOKUP($I32,DrawPrep!$C$3:$F$66,2,FALSE),"bye") -> bye | L32: =IF($I32>0,VLOOKUP($I32,DrawPrep!$C$3:$F$66,3,FALSE),"") ->  | R32: =UPPER(IF($A$2="R",IF(OR(Q32=1,Q32="a"),P30,IF(OR(Q32=2,Q32="b"),P34,"")),IF(OR(Q32=1,Q32="a"),P30,IF(OR(Q32=2,Q32="b"),P34,"")))) -> 
A33: 29 | B33: =22-D33+16 -> 24 | D33: 14 | E33: 0 | F33: =IF(NOT($G33="-"),VLOOKUP($G33,DrawPrep!$A$3:$F$66,2,FALSE),"") ->  | G33: =VLOOKUP($B33,Setup!$K$2:$L$65,2,FALSE) ->  | H33: =IF($G33>0,VLOOKUP($G33,DrawPrep!$A$3:$F$66,6,FALSE),0) ->  | I33: =IF(Setup!$B$24="#",0,IF($G33>0,VLOOKUP($G33,DrawPrep!$A$3:$F$66,3,FALSE),0)) ->  | J33: =IF($I33>0,VLOOKUP($I33,DrawPrep!$C$3:$F$66,2,FALSE),"bye") ->  | L33: =IF($I33>0,VLOOKUP($I33,DrawPrep!$C$3:$F$66,3,FALSE),"") ->  | N33: =UPPER(IF($A$2="R",IF(OR(M33=1,M33="a"),I33,IF(OR(M33=2,M33="b"),I34,"")),IF(OR(M33=1,M33="a"),K33,IF(OR(M33=2,M33="b"),K34,"")))) -> 
A34: 30 | B34: =23-D34+16 -> 24 | C34: 23 | D34: 15 | E34: =IF($B$2>=C34,1,0) -> 1 | F34: =IF(NOT($G34="-"),VLOOKUP($G34,DrawPrep!$A$3:$F$66,2,FALSE),"") ->  | G34: =IF($B$2>=C34,"-",VLOOKUP($B34,Setup!$K$2:$L$65,2,FALSE)) -> - | H34: =IF(NOT($G34="-"),VLOOKUP($G34,DrawPrep!$A$3:$F$66,6,FALSE),0) -> 0 | I34: =IF(Setup!$B$24="#",0,IF(NOT($G34="-"),VLOOKUP($G34,DrawPrep!$A$3:$F$66,3,FALSE),0)) -> 0 | J34: =IF($I34>0,VLOOKUP($I34,DrawPrep!$C$3:$F$66,2,FALSE),"bye") -> bye | L34: =IF($I34>0,VLOOKUP($I34,DrawPrep!$C$3:$F$66,3,FALSE),"") ->  | P34: =UPPER(IF($A$2="R",IF(OR(O34=1,O34="a"),N33,IF(OR(O34=2,O34="b"),N35,"")),IF(OR(O34=1,O34="a"),N33,IF(OR(O34=2,O34="b"),N35,"")))) ->  | R34: finalists | T34: winner
A35: 31 | B35: =24-D35+16 -> 24 | C35: =B36 -> 5 | D35: 16 | E35: =IF($B$2>=C35,1,0) -> 1 | F35: =IF(NOT($G35="-"),VLOOKUP($G35,DrawPrep!$A$3:$F$66,2,FALSE),"") ->  | G35: =IF($B$2>=C35,"-",VLOOKUP($B35,Setup!$K$2:$L$65,2,FALSE)) -> - | H35: =IF(NOT($G35="-"),VLOOKUP($G35,DrawPrep!$A$3:$F$66,6,FALSE),0) -> 0 | I35: =IF(Setup!$B$24="#",0,IF(NOT($G35="-"),VLOOKUP($G35,DrawPrep!$A$3:$F$66,3,FALSE),0)) -> 0 | J35: =IF($I35>0,VLOOKUP($I35,DrawPrep!$C$3:$F$66,2,FALSE),"bye") -> bye | L35: =IF($I35>0,VLOOKUP($I35,DrawPrep!$C$3:$F$66,3,FALSE),"") ->  | N35: =UPPER(IF($A$2="R",IF(OR(M35=1,M35="a"),I35,IF(OR(M35=2,M35="b"),I36,"")),IF(OR(M35=1,M35="a"),K35,IF(OR(M35=2,M35="b"),K36,"")))) -> 
A36: 32 | B36: =VALUE(Setup!E6) -> 5 | D36: 16 | E36: 0 | F36: =IF(NOT($G36="-"),VLOOKUP($G36,DrawPrep!$A$3:$F$66,2,FALSE),"") -> 0 | G36: =VLOOKUP($B36,Setup!$K$2:$L$65,2,FALSE) -> 5 | H36: =IF($G36>0,VLOOKUP($G36,DrawPrep!$A$3:$F$66,6,FALSE),0) -> 19 | I36: =IF(Setup!$B$24="#",0,IF($G36>0,VLOOKUP($G36,DrawPrep!$A$3:$F$66,3,FALSE),0)) -> 32434 | J36: =IF($I36>0,VLOOKUP($I36,DrawPrep!$C$3:$F$66,2,FALSE),"bye") -> ΡΟΖΗΣ ΔΗΜΗΤΡΗΣ | K36: ΡΟΖΗΣ | L36: =IF($I36>0,VLOOKUP($I36,DrawPrep!$C$3:$F$66,3,FALSE),"") -> Α.Ε.Τ. ΝΙΚΗ ΠΑΤΡΩΝ | R36: =T20 ->  | T36: =UPPER(IF($A$2="R",IF(OR(S36=1,S36="a"),R36,IF(OR(S36=2,S36="b"),R37,"")),IF(OR(S36=1,S36="a"),R36,IF(OR(S36=2,S36="b"),R37,"")))) -> 
A37: 33 | B37: =VALUE(Setup!E7) -> 8 | D37: 16 | E37: 0 | F37: =IF(NOT($G37="-"),VLOOKUP($G37,DrawPrep!$A$3:$F$66,2,FALSE),"") -> 0 | G37: =VLOOKUP($B37,Setup!$K$2:$L$65,2,FALSE) -> 8 | H37: =IF($G37>0,VLOOKUP($G37,DrawPrep!$A$3:$F$66,6,FALSE),0) -> 16 | I37: =IF(Setup!$B$24="#",0,IF($G37>0,VLOOKUP($G37,DrawPrep!$A$3:$F$66,3,FALSE),0)) -> 37478 | J37: =IF($I37>0,VLOOKUP($I37,DrawPrep!$C$3:$F$66,2,FALSE),"bye") -> ΚΑΡΑΟΥΛΑΝΗΣ ΒΑΣΙΛΕΙΟΣ | K37: ΚΑΡΑΟΥΛΑΝΗΣ | L37: =IF($I37>0,VLOOKUP($I37,DrawPrep!$C$3:$F$66,3,FALSE),"") -> Ο.Α. ΦΟΙΒΟΣ ΛΑΡΙΣΑΣ | N37: =UPPER(IF($A$2="R",IF(OR(M37=1,M37="a"),I37,IF(OR(M37=2,M37="b"),I38,"")),IF(OR(M37=1,M37="1"),K37,IF(OR(M37=2,M37="b"),K38,"")))) ->  | R37: =T52 -> 
A38: 34 | B38: =25-D38+16 -> 24 | C38: =B37 -> 8 | D38: 17 | E38: =IF($B$2>=C38,1,0) -> 1 | F38: =IF(NOT($G38="-"),VLOOKUP($G38,DrawPrep!$A$3:$F$66,2,FALSE),"") ->  | G38: =IF($B$2>=C38,"-",VLOOKUP($B38,Setup!$K$2:$L$65,2,FALSE)) -> - | H38: =IF(NOT($G38="-"),VLOOKUP($G38,DrawPrep!$A$3:$F$66,6,FALSE),0) -> 0 | I38: =IF(Setup!$B$24="#",0,IF(NOT($G38="-"),VLOOKUP($G38,DrawPrep!$A$3:$F$66,3,FALSE),0)) -> 0 | J38: =IF($I38>0,VLOOKUP($I38,DrawPrep!$C$3:$F$66,2,FALSE),"bye") -> bye | L38: =IF($I38>0,VLOOKUP($I38,DrawPrep!$C$3:$F$66,3,FALSE),"") ->  | P38: =UPPER(IF($A$2="R",IF(OR(O38=1,O38="a"),N37,IF(OR(O38=2,O38="b"),N39,"")),IF(OR(O38=1,O38="a"),N37,IF(OR(O38=2,O38="b"),N39,"")))) -> 
A39: 35 | B39: =26-D39+16 -> 25 | D39: 17 | E39: 0 | F39: =IF(NOT($G39="-"),VLOOKUP($G39,DrawPrep!$A$3:$F$66,2,FALSE),"") ->  | G39: =VLOOKUP($B39,Setup!$K$2:$L$65,2,FALSE) ->  | H39: =IF($G39>0,VLOOKUP($G39,DrawPrep!$A$3:$F$66,6,FALSE),0) ->  | I39: =IF(Setup!$B$24="#",0,IF($G39>0,VLOOKUP($G39,DrawPrep!$A$3:$F$66,3,FALSE),0)) ->  | J39: =IF($I39>0,VLOOKUP($I39,DrawPrep!$C$3:$F$66,2,FALSE),"bye") ->  | L39: =IF($I39>0,VLOOKUP($I39,DrawPrep!$C$3:$F$66,3,FALSE),"") ->  | N39: =UPPER(IF($A$2="R",IF(OR(M39=1,M39="a"),I39,IF(OR(M39=2,M39="b"),I40,"")),IF(OR(M39=1,M39="a"),K39,IF(OR(M39=2,M39="b"),K40,"")))) -> 
A40: 36 | B40: =27-D40+16 -> 25 | C40: 28 | D40: 18 | E40: =IF($B$2>=C40,1,0) -> 1 | F40: =IF(NOT($G40="-"),VLOOKUP($G40,DrawPrep!$A$3:$F$66,2,FALSE),"") ->  | G40: =IF($B$2>=C40,"-",VLOOKUP($B40,Setup!$K$2:$L$65,2,FALSE)) -> - | H40: =IF(NOT($G40="-"),VLOOKUP($G40,DrawPrep!$A$3:$F$66,6,FALSE),0) -> 0 | I40: =IF(Setup!$B$24="#",0,IF(NOT($G40="-"),VLOOKUP($G40,DrawPrep!$A$3:$F$66,3,FALSE),0)) -> 0 | J40: =IF($I40>0,VLOOKUP($I40,DrawPrep!$C$3:$F$66,2,FALSE),"bye") -> bye | L40: =IF($I40>0,VLOOKUP($I40,DrawPrep!$C$3:$F$66,3,FALSE),"") ->  | R40: =UPPER(IF($A$2="R",IF(OR(Q40=1,Q40="a"),P38,IF(OR(Q40=2,Q40="b"),P42,"")),IF(OR(Q40=1,Q40="a"),P38,IF(OR(Q40=2,Q40="b"),P42,"")))) -> 
A41: 37 | B41: =28-D41+16 -> 26 | D41: 18 | E41: 0 | F41: =IF(NOT($G41="-"),VLOOKUP($G41,DrawPrep!$A$3:$F$66,2,FALSE),"") ->  | G41: =VLOOKUP($B41,Setup!$K$2:$L$65,2,FALSE) ->  | H41: =IF($G41>0,VLOOKUP($G41,DrawPrep!$A$3:$F$66,6,FALSE),0) ->  | I41: =IF(Setup!$B$24="#",0,IF($G41>0,VLOOKUP($G41,DrawPrep!$A$3:$F$66,3,FALSE),0)) ->  | J41: =IF($I41>0,VLOOKUP($I41,DrawPrep!$C$3:$F$66,2,FALSE),"bye") ->  | L41: =IF($I41>0,VLOOKUP($I41,DrawPrep!$C$3:$F$66,3,FALSE),"") ->  | N41: =UPPER(IF($A$2="R",IF(OR(M41=1,M41="a"),I41,IF(OR(M41=2,M41="b"),I42,"")),IF(OR(M41=1,M41="a"),K41,IF(OR(M41=2,M41="b"),K42,"")))) -> 
A42: 38 | B42: =29-D42+16 -> 26 | C42: 20 | D42: 19 | E42: =IF($B$2>=C42,1,0) -> 1 | F42: =IF(NOT($G42="-"),VLOOKUP($G42,DrawPrep!$A$3:$F$66,2,FALSE),"") ->  | G42: =IF($B$2>=C42,"-",VLOOKUP($B42,Setup!$K$2:$L$65,2,FALSE)) -> - | H42: =IF(NOT($G42="-"),VLOOKUP($G42,DrawPrep!$A$3:$F$66,6,FALSE),0) -> 0 | I42: =IF(Setup!$B$24="#",0,IF(NOT($G42="-"),VLOOKUP($G42,DrawPrep!$A$3:$F$66,3,FALSE),0)) -> 0 | J42: =IF($I42>0,VLOOKUP($I42,DrawPrep!$C$3:$F$66,2,FALSE),"bye") -> bye | L42: =IF($I42>0,VLOOKUP($I42,DrawPrep!$C$3:$F$66,3,FALSE),"") ->  | P42: =UPPER(IF($A$2="R",IF(OR(O42=1,O42="a"),N41,IF(OR(O42=2,O42="b"),N43,"")),IF(OR(O42=1,O42="a"),N41,IF(OR(O42=2,O42="b"),N43,"")))) -> 
A43: 39 | B43: =30-D43+16 -> 26 | C43: =B44 -> 10 | D43: 20 | E43: =IF($B$2>=C43,1,0) -> 1 | F43: =IF(NOT($G43="-"),VLOOKUP($G43,DrawPrep!$A$3:$F$66,2,FALSE),"") ->  | G43: =IF($B$2>=C43,"-",VLOOKUP($B43,Setup!$K$2:$L$65,2,FALSE)) -> - | H43: =IF(NOT($G43="-"),VLOOKUP($G43,DrawPrep!$A$3:$F$66,6,FALSE),0) -> 0 | I43: =IF(Setup!$B$24="#",0,IF(NOT($G43="-"),VLOOKUP($G43,DrawPrep!$A$3:$F$66,3,FALSE),0)) -> 0 | J43: =IF($I43>0,VLOOKUP($I43,DrawPrep!$C$3:$F$66,2,FALSE),"bye") -> bye | L43: =IF($I43>0,VLOOKUP($I43,DrawPrep!$C$3:$F$66,3,FALSE),"") ->  | N43: =UPPER(IF($A$2="R",IF(OR(M43=1,M43="a"),I43,IF(OR(M43=2,M43="b"),I44,"")),IF(OR(M43=1,M43="a"),K43,IF(OR(M43=2,M43="b"),K44,"")))) -> 
A44: 40 | B44: =VALUE(Setup!E12) -> 10 | D44: 20 | E44: 0 | F44: =IF(NOT($G44="-"),VLOOKUP($G44,DrawPrep!$A$3:$F$66,2,FALSE),"") -> 0 | G44: =VLOOKUP($B44,Setup!$K$2:$L$65,2,FALSE) -> 10 | H44: =IF($G44>0,VLOOKUP($G44,DrawPrep!$A$3:$F$66,6,FALSE),0) -> 14 | I44: =IF(Setup!$B$24="#",0,IF($G44>0,VLOOKUP($G44,DrawPrep!$A$3:$F$66,3,FALSE),0)) -> 33122 | J44: =IF($I44>0,VLOOKUP($I44,DrawPrep!$C$3:$F$66,2,FALSE),"bye") -> ΑΦΑΛΩΝΙΑΤΗΣ ΘΑΝΟΣ | K44: ΑΦΑΛΩΝΙΑΤΗΣ | L44: =IF($I44>0,VLOOKUP($I44,DrawPrep!$C$3:$F$66,3,FALSE),"") -> Α.Ε.Τ. ΝΙΚΗ ΠΑΤΡΩΝ | T44: =UPPER(IF($A$2="R",IF(OR(S44=1,S44="a"),R40,IF(OR(S44=2,S44="b"),R48,"")),IF(OR(S44=1,S44="a"),R40,IF(OR(S44=2,S44="b"),R48,"")))) -> 
A45: 41 | B45: =VALUE(Setup!E17) -> 16 | D45: 20 | E45: 0 | F45: =IF(NOT($G45="-"),VLOOKUP($G45,DrawPrep!$A$3:$F$66,2,FALSE),"") -> 0 | G45: =VLOOKUP($B45,Setup!$K$2:$L$65,2,FALSE) -> 16 | H45: =IF($G45>0,VLOOKUP($G45,DrawPrep!$A$3:$F$66,6,FALSE),0) -> 0 | I45: =IF(Setup!$B$24="#",0,IF($G45>0,VLOOKUP($G45,DrawPrep!$A$3:$F$66,3,FALSE),0)) -> 37664 | J45: =IF($I45>0,VLOOKUP($I45,DrawPrep!$C$3:$F$66,2,FALSE),"bye") -> ΚΑΥΜΕΝΑΚΗΣ ΑΡΙΣΤΟΤΕΛΗΣ | K45: ΚΑΥΜΕΝΑΚΗΣ | L45: =IF($I45>0,VLOOKUP($I45,DrawPrep!$C$3:$F$66,3,FALSE),"") -> Ο.Α. ΧΑΝΙΩΝ | N45: =UPPER(IF($A$2="R",IF(OR(M45=1,M45="a"),I45,IF(OR(M45=2,M45="b"),I46,"")),IF(OR(M45=1,M45="a"),K45,IF(OR(M45=2,M45="b"),K46,"")))) -> 
A46: 42 | B46: =31-D46+16 -> 26 | C46: =B45 -> 16 | D46: 21 | E46: =IF($B$2>=C46,1,0) -> 1 | F46: =IF(NOT($G46="-"),VLOOKUP($G46,DrawPrep!$A$3:$F$66,2,FALSE),"") ->  | G46: =IF($B$2>=C46,"-",VLOOKUP($B46,Setup!$K$2:$L$65,2,FALSE)) -> - | H46: =IF(NOT($G46="-"),VLOOKUP($G46,DrawPrep!$A$3:$F$66,6,FALSE),0) -> 0 | I46: =IF(Setup!$B$24="#",0,IF(NOT($G46="-"),VLOOKUP($G46,DrawPrep!$A$3:$F$66,3,FALSE),0)) -> 0 | J46: =IF($I46>0,VLOOKUP($I46,DrawPrep!$C$3:$F$66,2,FALSE),"bye") -> bye | L46: =IF($I46>0,VLOOKUP($I46,DrawPrep!$C$3:$F$66,3,FALSE),"") ->  | P46: =UPPER(IF($A$2="R",IF(OR(O46=1,O46="a"),N45,IF(OR(O46=2,O46="b"),N47,"")),IF(OR(O46=1,O46="a"),N45,IF(OR(O46=2,O46="b"),N47,"")))) -> 
A47: 43 | B47: =32-D47+16 -> 27 | D47: 21 | E47: 0 | F47: =IF(NOT($G47="-"),VLOOKUP($G47,DrawPrep!$A$3:$F$66,2,FALSE),"") ->  | G47: =VLOOKUP($B47,Setup!$K$2:$L$65,2,FALSE) ->  | H47: =IF($G47>0,VLOOKUP($G47,DrawPrep!$A$3:$F$66,6,FALSE),0) ->  | I47: =IF(Setup!$B$24="#",0,IF($G47>0,VLOOKUP($G47,DrawPrep!$A$3:$F$66,3,FALSE),0)) ->  | J47: =IF($I47>0,VLOOKUP($I47,DrawPrep!$C$3:$F$66,2,FALSE),"bye") ->  | L47: =IF($I47>0,VLOOKUP($I47,DrawPrep!$C$3:$F$66,3,FALSE),"") ->  | N47: =UPPER(IF($A$2="R",IF(OR(M47=1,M47="a"),I47,IF(OR(M47=2,M47="b"),I48,"")),IF(OR(M47=1,M47="a"),K47,IF(OR(M47=2,M47="b"),K48,"")))) -> 
A48: 44 | B48: =33-D48+16 -> 27 | C48: 24 | D48: 22 | E48: =IF($B$2>=C48,1,0) -> 1 | F48: =IF(NOT($G48="-"),VLOOKUP($G48,DrawPrep!$A$3:$F$66,2,FALSE),"") ->  | G48: =IF($B$2>=C48,"-",VLOOKUP($B48,Setup!$K$2:$L$65,2,FALSE)) -> - | H48: =IF(NOT($G48="-"),VLOOKUP($G48,DrawPrep!$A$3:$F$66,6,FALSE),0) -> 0 | I48: =IF(Setup!$B$24="#",0,IF(NOT($G48="-"),VLOOKUP($G48,DrawPrep!$A$3:$F$66,3,FALSE),0)) -> 0 | J48: =IF($I48>0,VLOOKUP($I48,DrawPrep!$C$3:$F$66,2,FALSE),"bye") -> bye | L48: =IF($I48>0,VLOOKUP($I48,DrawPrep!$C$3:$F$66,3,FALSE),"") ->  | R48: =UPPER(IF($A$2="R",IF(OR(Q48=1,Q48="a"),P46,IF(OR(Q48=2,Q48="b"),P50,"")),IF(OR(Q48=1,Q48="a"),P46,IF(OR(Q48=2,Q48="b"),P50,"")))) -> 
A49: 45 | B49: =34-D49+16 -> 28 | D49: 22 | E49: 0 | F49: =IF(NOT($G49="-"),VLOOKUP($G49,DrawPrep!$A$3:$F$66,2,FALSE),"") ->  | G49: =VLOOKUP($B49,Setup!$K$2:$L$65,2,FALSE) ->  | H49: =IF($G49>0,VLOOKUP($G49,DrawPrep!$A$3:$F$66,6,FALSE),0) ->  | I49: =IF(Setup!$B$24="#",0,IF($G49>0,VLOOKUP($G49,DrawPrep!$A$3:$F$66,3,FALSE),0)) ->  | J49: =IF($I49>0,VLOOKUP($I49,DrawPrep!$C$3:$F$66,2,FALSE),"bye") ->  | L49: =IF($I49>0,VLOOKUP($I49,DrawPrep!$C$3:$F$66,3,FALSE),"") ->  | N49: =UPPER(IF($A$2="R",IF(OR(M49=1,M49="a"),I49,IF(OR(M49=2,M49="b"),I50,"")),IF(OR(M49=1,M49="a"),K49,IF(OR(M49=2,M49="b"),K50,"")))) -> 
A50: 46 | B50: =35-D50+16 -> 28 | C50: 32 | D50: 23 | E50: =IF($B$2>=C50,1,0) -> 1 | F50: =IF(NOT($G50="-"),VLOOKUP($G50,DrawPrep!$A$3:$F$66,2,FALSE),"") ->  | G50: =IF($B$2>=C50,"-",VLOOKUP($B50,Setup!$K$2:$L$65,2,FALSE)) -> - | H50: =IF(NOT($G50="-"),VLOOKUP($G50,DrawPrep!$A$3:$F$66,6,FALSE),0) -> 0 | I50: =IF(Setup!$B$24="#",0,IF(NOT($G50="-"),VLOOKUP($G50,DrawPrep!$A$3:$F$66,3,FALSE),0)) -> 0 | J50: =IF($I50>0,VLOOKUP($I50,DrawPrep!$C$3:$F$66,2,FALSE),"bye") -> bye | L50: =IF($I50>0,VLOOKUP($I50,DrawPrep!$C$3:$F$66,3,FALSE),"") ->  | P50: =UPPER(IF($A$2="R",IF(OR(O50=1,O50="a"),N49,IF(OR(O50=2,O50="b"),N51,"")),IF(OR(O50=1,O50="a"),N49,IF(OR(O50=2,O50="b"),N51,"")))) -> 
A51: 47 | B51: =36-D51+16 -> 28 | C51: =B52 -> 4 | D51: 24 | E51: =IF($B$2>=C51,1,0) -> 1 | F51: =IF(NOT($G51="-"),VLOOKUP($G51,DrawPrep!$A$3:$F$66,2,FALSE),"") ->  | G51: =IF($B$2>=C51,"-",VLOOKUP($B51,Setup!$K$2:$L$65,2,FALSE)) -> - | H51: =IF(NOT($G51="-"),VLOOKUP($G51,DrawPrep!$A$3:$F$66,6,FALSE),0) -> 0 | I51: =IF(Setup!$B$24="#",0,IF(NOT($G51="-"),VLOOKUP($G51,DrawPrep!$A$3:$F$66,3,FALSE),0)) -> 0 | J51: =IF($I51>0,VLOOKUP($I51,DrawPrep!$C$3:$F$66,2,FALSE),"bye") -> bye | L51: =IF($I51>0,VLOOKUP($I51,DrawPrep!$C$3:$F$66,3,FALSE),"") ->  | N51: =UPPER(IF($A$2="R",IF(OR(M51=1,M51="a"),I51,IF(OR(M51=2,M51="b"),I52,"")),IF(OR(M51=1,M51="a"),K51,IF(OR(M51=2,M51="b"),K52,"")))) -> 
A52: 48 | B52: =VALUE(Setup!E3) -> 4 | D52: 24 | E52: 0 | F52: =IF(NOT($G52="-"),VLOOKUP($G52,DrawPrep!$A$3:$F$66,2,FALSE),"") -> 0 | G52: =VLOOKUP($B52,Setup!$K$2:$L$65,2,FALSE) -> 4 | H52: =IF($G52>0,VLOOKUP($G52,DrawPrep!$A$3:$F$66,6,FALSE),0) -> 20 | I52: =IF(Setup!$B$24="#",0,IF($G52>0,VLOOKUP($G52,DrawPrep!$A$3:$F$66,3,FALSE),0)) -> 40000 | J52: =IF($I52>0,VLOOKUP($I52,DrawPrep!$C$3:$F$66,2,FALSE),"bye") -> ΓΟΥΔΕΛΗΣ ΔΗΜΗΤΡΗΣ | K52: ΓΟΥΔΕΛΗΣ | L52: =IF($I52>0,VLOOKUP($I52,DrawPrep!$C$3:$F$66,3,FALSE),"") -> Α.Σ. ΑΣΤΕΡΑΣ ΠΕΝΤΕΛΙΚΟΥ | T52: =UPPER(IF($A$2="R",IF(OR(S52=1,S52="a"),T44,IF(OR(S52=2,S52="b"),T60,"")),IF(OR(S52=1,S52="a"),T44,IF(OR(S52=2,S52="b"),T60,"")))) -> 
A53: 49 | B53: =VALUE(Setup!E8) -> 6 | D53: 24 | E53: 0 | F53: =IF(NOT($G53="-"),VLOOKUP($G53,DrawPrep!$A$3:$F$66,2,FALSE),"") -> 0 | G53: =VLOOKUP($B53,Setup!$K$2:$L$65,2,FALSE) -> 6 | H53: =IF($G53>0,VLOOKUP($G53,DrawPrep!$A$3:$F$66,6,FALSE),0) -> 18 | I53: =IF(Setup!$B$24="#",0,IF($G53>0,VLOOKUP($G53,DrawPrep!$A$3:$F$66,3,FALSE),0)) -> 37981 | J53: =IF($I53>0,VLOOKUP($I53,DrawPrep!$C$3:$F$66,2,FALSE),"bye") -> ΓΙΑΝΝΟΣ ΗΛΙΑΣ | K53: ΓΙΑΝΝΟΣ | L53: =IF($I53>0,VLOOKUP($I53,DrawPrep!$C$3:$F$66,3,FALSE),"") -> Α.Γ.Ο. ΦΙΛΙΠΠΙΑΔΑΣ | N53: =UPPER(IF($A$2="R",IF(OR(M53=1,M53="a"),I53,IF(OR(M53=2,M53="b"),I54,"")),IF(OR(M53=1,M53="a"),K53,IF(OR(M53=2,M53="b"),K54,"")))) -> 
A54: 50 | B54: =37-D54+16 -> 28 | C54: =B53 -> 6 | D54: 25 | E54: =IF($B$2>=C54,1,0) -> 1 | F54: =IF(NOT($G54="-"),VLOOKUP($G54,DrawPrep!$A$3:$F$66,2,FALSE),"") ->  | G54: =IF($B$2>=C54,"-",VLOOKUP($B54,Setup!$K$2:$L$65,2,FALSE)) -> - | H54: =IF(NOT($G54="-"),VLOOKUP($G54,DrawPrep!$A$3:$F$66,6,FALSE),0) -> 0 | I54: =IF(Setup!$B$24="#",0,IF(NOT($G54="-"),VLOOKUP($G54,DrawPrep!$A$3:$F$66,3,FALSE),0)) -> 0 | J54: =IF($I54>0,VLOOKUP($I54,DrawPrep!$C$3:$F$66,2,FALSE),"bye") -> bye | L54: =IF($I54>0,VLOOKUP($I54,DrawPrep!$C$3:$F$66,3,FALSE),"") ->  | P54: =UPPER(IF($A$2="R",IF(OR(O54=1,O54="a"),N53,IF(OR(O54=2,O54="b"),N55,"")),IF(OR(O54=1,O54="a"),N53,IF(OR(O54=2,O54="b"),N55,"")))) -> 
A55: 51 | B55: =38-D55+16 -> 29 | D55: 25 | E55: 0 | F55: =IF(NOT($G55="-"),VLOOKUP($G55,DrawPrep!$A$3:$F$66,2,FALSE),"") ->  | G55: =VLOOKUP($B55,Setup!$K$2:$L$65,2,FALSE) ->  | H55: =IF($G55>0,VLOOKUP($G55,DrawPrep!$A$3:$F$66,6,FALSE),0) ->  | I55: =IF(Setup!$B$24="#",0,IF($G55>0,VLOOKUP($G55,DrawPrep!$A$3:$F$66,3,FALSE),0)) ->  | J55: =IF($I55>0,VLOOKUP($I55,DrawPrep!$C$3:$F$66,2,FALSE),"bye") ->  | L55: =IF($I55>0,VLOOKUP($I55,DrawPrep!$C$3:$F$66,3,FALSE),"") ->  | N55: =UPPER(IF($A$2="R",IF(OR(M55=1,M55="a"),I55,IF(OR(M55=2,M55="b"),I56,"")),IF(OR(M55=1,M55="a"),K55,IF(OR(M55=2,M55="b"),K56,"")))) -> 
A56: 52 | B56: =39-D56+16 -> 29 | C56: 22 | D56: 26 | E56: =IF($B$2>=C56,1,0) -> 1 | F56: =IF(NOT($G56="-"),VLOOKUP($G56,DrawPrep!$A$3:$F$66,2,FALSE),"") ->  | G56: =IF($B$2>=C56,"-",VLOOKUP($B56,Setup!$K$2:$L$65,2,FALSE)) -> - | H56: =IF(NOT($G56="-"),VLOOKUP($G56,DrawPrep!$A$3:$F$66,6,FALSE),0) -> 0 | I56: =IF(Setup!$B$24="#",0,IF(NOT($G56="-"),VLOOKUP($G56,DrawPrep!$A$3:$F$66,3,FALSE),0)) -> 0 | J56: =IF($I56>0,VLOOKUP($I56,DrawPrep!$C$3:$F$66,2,FALSE),"bye") -> bye | L56: =IF($I56>0,VLOOKUP($I56,DrawPrep!$C$3:$F$66,3,FALSE),"") ->  | R56: =UPPER(IF($A$2="R",IF(OR(Q56=1,Q56="a"),P54,IF(OR(Q56=2,Q56="b"),P58,"")),IF(OR(Q56=1,Q56="a"),P54,IF(OR(Q56=2,Q56="b"),P58,"")))) -> 
A57: 53 | B57: =40-D57+16 -> 30 | D57: 26 | E57: 0 | F57: =IF(NOT($G57="-"),VLOOKUP($G57,DrawPrep!$A$3:$F$66,2,FALSE),"") ->  | G57: =VLOOKUP($B57,Setup!$K$2:$L$65,2,FALSE) ->  | H57: =IF($G57>0,VLOOKUP($G57,DrawPrep!$A$3:$F$66,6,FALSE),0) ->  | I57: =IF(Setup!$B$24="#",0,IF($G57>0,VLOOKUP($G57,DrawPrep!$A$3:$F$66,3,FALSE),0)) ->  | J57: =IF($I57>0,VLOOKUP($I57,DrawPrep!$C$3:$F$66,2,FALSE),"bye") ->  | L57: =IF($I57>0,VLOOKUP($I57,DrawPrep!$C$3:$F$66,3,FALSE),"") ->  | N57: =UPPER(IF($A$2="R",IF(OR(M57=1,M57="a"),I57,IF(OR(M57=2,M57="b"),I58,"")),IF(OR(M57=1,M57="a"),K57,IF(OR(M57=2,M57="b"),K58,"")))) -> 
A58: 54 | B58: =41-D58+16 -> 30 | C58: 26 | D58: 27 | E58: =IF($B$2>=C58,1,0) -> 1 | F58: =IF(NOT($G58="-"),VLOOKUP($G58,DrawPrep!$A$3:$F$66,2,FALSE),"") ->  | G58: =IF($B$2>=C58,"-",VLOOKUP($B58,Setup!$K$2:$L$65,2,FALSE)) -> - | H58: =IF(NOT($G58="-"),VLOOKUP($G58,DrawPrep!$A$3:$F$66,6,FALSE),0) -> 0 | I58: =IF(Setup!$B$24="#",0,IF(NOT($G58="-"),VLOOKUP($G58,DrawPrep!$A$3:$F$66,3,FALSE),0)) -> 0 | J58: =IF($I58>0,VLOOKUP($I58,DrawPrep!$C$3:$F$66,2,FALSE),"bye") -> bye | L58: =IF($I58>0,VLOOKUP($I58,DrawPrep!$C$3:$F$66,3,FALSE),"") ->  | P58: =UPPER(IF($A$2="R",IF(OR(O58=1,O58="a"),N57,IF(OR(O58=2,O58="b"),N59,"")),IF(OR(O58=1,O58="a"),N57,IF(OR(O58=2,O58="b"),N59,"")))) -> 
A59: 55 | B59: =42-D59+16 -> 30 | C59: =B60 -> 9 | D59: 28 | E59: =IF($B$2>=C59,1,0) -> 1 | F59: =IF(NOT($G59="-"),VLOOKUP($G59,DrawPrep!$A$3:$F$66,2,FALSE),"") ->  | G59: =IF($B$2>=C59,"-",VLOOKUP($B59,Setup!$K$2:$L$65,2,FALSE)) -> - | H59: =IF(NOT($G59="-"),VLOOKUP($G59,DrawPrep!$A$3:$F$66,6,FALSE),0) -> 0 | I59: =IF(Setup!$B$24="#",0,IF(NOT($G59="-"),VLOOKUP($G59,DrawPrep!$A$3:$F$66,3,FALSE),0)) -> 0 | J59: =IF($I59>0,VLOOKUP($I59,DrawPrep!$C$3:$F$66,2,FALSE),"bye") -> bye | L59: =IF($I59>0,VLOOKUP($I59,DrawPrep!$C$3:$F$66,3,FALSE),"") ->  | N59: =UPPER(IF($A$2="R",IF(OR(M59=1,M59="a"),I59,IF(OR(M59=2,M59="b"),I60,"")),IF(OR(M59=1,M59="a"),K59,IF(OR(M59=2,M59="b"),K60,"")))) -> 
A60: 56 | B60: =VALUE(Setup!E13) -> 9 | D60: 28 | E60: 0 | F60: =IF(NOT($G60="-"),VLOOKUP($G60,DrawPrep!$A$3:$F$66,2,FALSE),"") -> 0 | G60: =VLOOKUP($B60,Setup!$K$2:$L$65,2,FALSE) -> 9 | H60: =IF($G60>0,VLOOKUP($G60,DrawPrep!$A$3:$F$66,6,FALSE),0) -> 15 | I60: =IF(Setup!$B$24="#",0,IF($G60>0,VLOOKUP($G60,DrawPrep!$A$3:$F$66,3,FALSE),0)) -> 37979 | J60: =IF($I60>0,VLOOKUP($I60,DrawPrep!$C$3:$F$66,2,FALSE),"bye") -> ΧΑΤΖΟΠΟΥΛΟΣ ΒΑΣΙΛΕΙΟΣ | K60: ΧΑΤΖΟΠΟΥΛΟΣ | L60: =IF($I60>0,VLOOKUP($I60,DrawPrep!$C$3:$F$66,3,FALSE),"") -> Α.Γ.Ο. ΦΙΛΙΠΠΙΑΔΑΣ | T60: =UPPER(IF($A$2="R",IF(OR(S60=1,S60="a"),R56,IF(OR(S60=2,S60="b"),R64,"")),IF(OR(S60=1,S60="a"),R56,IF(OR(S60=2,S60="b"),R64,"")))) -> 
A61: 57 | B61: =VALUE(Setup!E18) -> 14 | D61: 28 | E61: 0 | F61: =IF(NOT($G61="-"),VLOOKUP($G61,DrawPrep!$A$3:$F$66,2,FALSE),"") -> 0 | G61: =VLOOKUP($B61,Setup!$K$2:$L$65,2,FALSE) -> 14 | H61: =IF($G61>0,VLOOKUP($G61,DrawPrep!$A$3:$F$66,6,FALSE),0) -> 10 | I61: =IF(Setup!$B$24="#",0,IF($G61>0,VLOOKUP($G61,DrawPrep!$A$3:$F$66,3,FALSE),0)) -> 32430 | J61: =IF($I61>0,VLOOKUP($I61,DrawPrep!$C$3:$F$66,2,FALSE),"bye") -> ΔΗΜΟΠΟΥΛΟΣ ΝΙΚΟΛΑΣ | K61: ΔΗΜΟΠΟΥΛΟΣ | L61: =IF($I61>0,VLOOKUP($I61,DrawPrep!$C$3:$F$66,3,FALSE),"") -> Α.Ε.Τ. ΝΙΚΗ ΠΑΤΡΩΝ | N61: =UPPER(IF($A$2="R",IF(OR(M61=1,M61="a"),I61,IF(OR(M61=2,M61="b"),I62,"")),IF(OR(M61=1,M61="a"),K61,IF(OR(M61=2,M61="b"),K62,"")))) -> 
A62: 58 | B62: =43-D62+16 -> 30 | C62: =B60 -> 9 | D62: 29 | E62: =IF($B$2>=C62,1,0) -> 1 | F62: =IF(NOT($G62="-"),VLOOKUP($G62,DrawPrep!$A$3:$F$66,2,FALSE),"") ->  | G62: =IF($B$2>=C62,"-",VLOOKUP($B62,Setup!$K$2:$L$65,2,FALSE)) -> - | H62: =IF(NOT($G62="-"),VLOOKUP($G62,DrawPrep!$A$3:$F$66,6,FALSE),0) -> 0 | I62: =IF(Setup!$B$24="#",0,IF(NOT($G62="-"),VLOOKUP($G62,DrawPrep!$A$3:$F$66,3,FALSE),0)) -> 0 | J62: =IF($I62>0,VLOOKUP($I62,DrawPrep!$C$3:$F$66,2,FALSE),"bye") -> bye | L62: =IF($I62>0,VLOOKUP($I62,DrawPrep!$C$3:$F$66,3,FALSE),"") ->  | P62: =UPPER(IF($A$2="R",IF(OR(O62=1,O62="a"),N61,IF(OR(O62=2,O62="b"),N63,"")),IF(OR(O62=1,O62="a"),N61,IF(OR(O62=2,O62="b"),N63,"")))) -> 
A63: 59 | B63: =44-D63+16 -> 31 | D63: 29 | E63: 0 | F63: =IF(NOT($G63="-"),VLOOKUP($G63,DrawPrep!$A$3:$F$66,2,FALSE),"") ->  | G63: =VLOOKUP($B63,Setup!$K$2:$L$65,2,FALSE) ->  | H63: =IF($G63>0,VLOOKUP($G63,DrawPrep!$A$3:$F$66,6,FALSE),0) ->  | I63: =IF(Setup!$B$24="#",0,IF($G63>0,VLOOKUP($G63,DrawPrep!$A$3:$F$66,3,FALSE),0)) ->  | J63: =IF($I63>0,VLOOKUP($I63,DrawPrep!$C$3:$F$66,2,FALSE),"bye") ->  | L63: =IF($I63>0,VLOOKUP($I63,DrawPrep!$C$3:$F$66,3,FALSE),"") ->  | N63: =UPPER(IF($A$2="R",IF(OR(M63=1,M63="a"),I63,IF(OR(M63=2,M63="b"),I64,"")),IF(OR(M63=1,M63="a"),K63,IF(OR(M63=2,M63="b"),K64,"")))) -> 
A64: 60 | B64: =45-D64+16 -> 31 | C64: 18 | D64: 30 | E64: =IF($B$2>=C64,1,0) -> 1 | F64: =IF(NOT($G64="-"),VLOOKUP($G64,DrawPrep!$A$3:$F$66,2,FALSE),"") ->  | G64: =IF($B$2>=C64,"-",VLOOKUP($B64,Setup!$K$2:$L$65,2,FALSE)) -> - | H64: =IF(NOT($G64="-"),VLOOKUP($G64,DrawPrep!$A$3:$F$66,6,FALSE),0) -> 0 | I64: =IF(Setup!$B$24="#",0,IF(NOT($G64="-"),VLOOKUP($G64,DrawPrep!$A$3:$F$66,3,FALSE),0)) -> 0 | J64: =IF($I64>0,VLOOKUP($I64,DrawPrep!$C$3:$F$66,2,FALSE),"bye") -> bye | L64: =IF($I64>0,VLOOKUP($I64,DrawPrep!$C$3:$F$66,3,FALSE),"") ->  | R64: =UPPER(IF($A$2="R",IF(OR(Q64=1,Q64="a"),P62,IF(OR(Q64=2,Q64="b"),P66,"")),IF(OR(Q64=1,Q64="a"),P62,IF(OR(Q64=2,Q64="b"),P66,"")))) -> 
A65: 61 | B65: =46-D65+16 -> 32 | D65: 30 | E65: 0 | F65: =IF(NOT($G65="-"),VLOOKUP($G65,DrawPrep!$A$3:$F$66,2,FALSE),"") ->  | G65: =VLOOKUP($B65,Setup!$K$2:$L$65,2,FALSE) ->  | H65: =IF($G65>0,VLOOKUP($G65,DrawPrep!$A$3:$F$66,6,FALSE),0) ->  | I65: =IF(Setup!$B$24="#",0,IF($G65>0,VLOOKUP($G65,DrawPrep!$A$3:$F$66,3,FALSE),0)) ->  | J65: =IF($I65>0,VLOOKUP($I65,DrawPrep!$C$3:$F$66,2,FALSE),"bye") ->  | L65: =IF($I65>0,VLOOKUP($I65,DrawPrep!$C$3:$F$66,3,FALSE),"") ->  | N65: =UPPER(IF($A$2="R",IF(OR(M65=1,M65="a"),I65,IF(OR(M65=2,M65="b"),I66,"")),IF(OR(M65=1,M65="a"),K65,IF(OR(M65=2,M65="b"),K66,"")))) -> 
A66: 62 | B66: =47-D66+16 -> 32 | C66: 30 | D66: 31 | E66: =IF($B$2>=C66,1,0) -> 1 | F66: =IF(NOT($G66="-"),VLOOKUP($G66,DrawPrep!$A$3:$F$66,2,FALSE),"") ->  | G66: =IF($B$2>=C66,"-",VLOOKUP($B66,Setup!$K$2:$L$65,2,FALSE)) -> - | H66: =IF(NOT($G66="-"),VLOOKUP($G66,DrawPrep!$A$3:$F$66,6,FALSE),0) -> 0 | I66: =IF(Setup!$B$24="#",0,IF(NOT($G66="-"),VLOOKUP($G66,DrawPrep!$A$3:$F$66,3,FALSE),0)) -> 0 | J66: =IF($I66>0,VLOOKUP($I66,DrawPrep!$C$3:$F$66,2,FALSE),"bye") -> bye | L66: =IF($I66>0,VLOOKUP($I66,DrawPrep!$C$3:$F$66,3,FALSE),"") ->  | P66: =UPPER(IF($A$2="R",IF(OR(O66=1,O66="a"),N65,IF(OR(O66=2,O66="b"),N67,"")),IF(OR(O66=1,O66="a"),N65,IF(OR(O66=2,O66="b"),N67,"")))) -> 
A67: 63 | B67: =48-D67+16 -> 32 | C67: =B68 -> 2 | D67: 32 | E67: =IF($B$2>=C67,1,0) -> 1 | F67: =IF(NOT($G67="-"),VLOOKUP($G67,DrawPrep!$A$3:$F$66,2,FALSE),"") ->  | G67: =IF($B$2>=C67,"-",VLOOKUP($B67,Setup!$K$2:$L$65,2,FALSE)) -> - | H67: =IF(NOT($G67="-"),VLOOKUP($G67,DrawPrep!$A$3:$F$66,6,FALSE),0) -> 0 | I67: =IF(Setup!$B$24="#",0,IF(NOT($G67="-"),VLOOKUP($G67,DrawPrep!$A$3:$F$66,3,FALSE),0)) -> 0 | J67: =IF($I67>0,VLOOKUP($I67,DrawPrep!$C$3:$F$66,2,FALSE),"bye") -> bye | L67: =IF($I67>0,VLOOKUP($I67,DrawPrep!$C$3:$F$66,3,FALSE),"") ->  | N67: =UPPER(IF($A$2="R",IF(OR(M67=1,M67="a"),I67,IF(OR(M67=2,M67="b"),I68,"")),IF(OR(M67=1,M67="a"),K67,IF(OR(M67=2,M67="b"),K68,"")))) -> 
A68: 64 | B68: 2 | F68: =IF(NOT($G68="-"),VLOOKUP($G68,DrawPrep!$A$3:$F$66,2,FALSE),"") -> 0 | G68: =VLOOKUP($B68,Setup!$K$2:$L$65,2,FALSE) -> 2 | H68: =IF($G68>0,VLOOKUP($G68,DrawPrep!$A$3:$F$66,6,FALSE),0) -> 22 | I68: =IF(Setup!$B$24="#",0,IF($G68>0,VLOOKUP($G68,DrawPrep!$A$3:$F$66,3,FALSE),0)) -> 36852 | J68: =IF($I68>0,VLOOKUP($I68,DrawPrep!$C$3:$F$66,2,FALSE),"bye") -> ΤΖΩΡΤΖΑΤΟΣ ΚΩΝΣΤΑΝΤΙΝΟΣ | K68: ΤΖΩΡΤΖΑΤΟΣ | L68: =IF($I68>0,VLOOKUP($I68,DrawPrep!$C$3:$F$66,3,FALSE),"") -> ΑΟΑ ΠΑΤΡΩΝ
P70: seeded players
P71: ="01. " & IF(Setup!B19>0,LEFT(DrawPrep!D3,FIND(" ",DrawPrep!D3)+1),"") -> 01. ΙΑΚΩΒΑΚΗΣ Ε | R71: ="09. " & IF(Setup!B19>8,LEFT(DrawPrep!D11,FIND(" ",DrawPrep!D11)+1),"") -> 09. ΧΑΤΖΟΠΟΥΛΟΣ Β
P72: ="02. " & IF(Setup!B19>1,LEFT(DrawPrep!D4,FIND(" ",DrawPrep!D4)+1),"") -> 02. ΤΖΩΡΤΖΑΤΟΣ Κ | R72: ="10. " & IF(Setup!B19>9,LEFT(DrawPrep!D12,FIND(" ",DrawPrep!D12)+1),"") -> 10. ΑΦΑΛΩΝΙΑΤΗΣ Θ
P73: ="03. " & IF(Setup!B19>2,LEFT(DrawPrep!D5,FIND(" ",DrawPrep!D5)+1),"") -> 03. ΛΑΜΠΡΟΠΟΥΛΟΣ Μ | R73: ="11. " & IF(Setup!B19>10,LEFT(DrawPrep!D13,FIND(" ",DrawPrep!D13)+1),"") -> 11. ΚΑΤΑΠΟΔΗΣ Γ
P74: ="04. " & IF(Setup!B19>3,LEFT(DrawPrep!D6,FIND(" ",DrawPrep!D6)+1),"") -> 04. ΓΟΥΔΕΛΗΣ Δ | R74: ="12. " & IF(Setup!B19>11,LEFT(DrawPrep!D14,FIND(" ",DrawPrep!D14)+1),"") -> 12. ΜΟΣΧΟΒΙΝΟΣ Α
P75: ="05. " & IF(Setup!B19>4,LEFT(DrawPrep!D7,FIND(" ",DrawPrep!D7)+1),"") -> 05. ΡΟΖΗΣ Δ | R75: ="13. " & IF(Setup!B19>12,LEFT(DrawPrep!D15,FIND(" ",DrawPrep!D15)+1),"") -> 13. ΛΑΜΠΡΟΠΟΥΛΟΣ Α
P76: ="06. " & IF(Setup!B19>5,LEFT(DrawPrep!D8,FIND(" ",DrawPrep!D8)+1),"") -> 06. ΓΙΑΝΝΟΣ Η | R76: ="14. " & IF(Setup!B19>13,LEFT(DrawPrep!D16,FIND(" ",DrawPrep!D16)+1),"") -> 14. ΔΗΜΟΠΟΥΛΟΣ Ν
P77: ="07. " & IF(Setup!B19>6,LEFT(DrawPrep!D9,FIND(" ",DrawPrep!D9)+1),"") -> 07. ΝΙΚΟΛΑΟΥ Α | R77: ="15. " & IF(Setup!B19>14,LEFT(DrawPrep!D17,FIND(" ",DrawPrep!D17)+1),"") -> 15. ΔΗΜΗΤΡΙΟΥ Γ
P78: ="08. " & IF(Setup!B19>7,LEFT(DrawPrep!D10,FIND(" ",DrawPrep!D10)+1),"") -> 08. ΚΑΡΑΟΥΛΑΝΗΣ Β | R78: ="16. " & IF(Setup!B19>15,LEFT(DrawPrep!D18,FIND(" ",DrawPrep!D18)+1),"") -> 16. ΚΑΥΜΕΝΑΚΗΣ Α
P80: επιδιαιτητής
P81: =Setup!B10 -> Στέφος Αλέξης
J90: BoldPlayers
J91: =IF(Setup!$B$19>0,LEFT(DrawPrep!D3,FIND(" ",DrawPrep!D3)-1)) -> ΙΑΚΩΒΑΚΗΣ
J92: =IF(Setup!$B$19>1,LEFT(DrawPrep!D4,FIND(" ",DrawPrep!D4)-1)) -> ΤΖΩΡΤΖΑΤΟΣ
J93: =IF(Setup!$B$19>2,LEFT(DrawPrep!D5,FIND(" ",DrawPrep!D5)-1)) -> ΛΑΜΠΡΟΠΟΥΛΟΣ
J94: =IF(Setup!$B$19>3,LEFT(DrawPrep!D6,FIND(" ",DrawPrep!D6)-1)) -> ΓΟΥΔΕΛΗΣ
J95: =IF(Setup!$B$19>4,LEFT(DrawPrep!D7,FIND(" ",DrawPrep!D7)-1)) -> ΡΟΖΗΣ
J96: =IF(Setup!$B$19>5,LEFT(DrawPrep!D8,FIND(" ",DrawPrep!D8)-1)) -> ΓΙΑΝΝΟΣ
J97: =IF(Setup!$B$19>6,LEFT(DrawPrep!D9,FIND(" ",DrawPrep!D9)-1)) -> ΝΙΚΟΛΑΟΥ
J98: =IF(Setup!$B$19>7,LEFT(DrawPrep!D10,FIND(" ",DrawPrep!D10)-1)) -> ΚΑΡΑΟΥΛΑΝΗΣ
J99: =IF(Setup!$B$19>8,LEFT(DrawPrep!D11,FIND(" ",DrawPrep!D11)-1)) -> ΧΑΤΖΟΠΟΥΛΟΣ
J100: =IF(Setup!$B$19>9,LEFT(DrawPrep!D12,FIND(" ",DrawPrep!D12)-1)) -> ΑΦΑΛΩΝΙΑΤΗΣ
J101: =IF(Setup!$B$19>10,LEFT(DrawPrep!D13,FIND(" ",DrawPrep!D13)-1)) -> ΚΑΤΑΠΟΔΗΣ
J102: =IF(Setup!$B$19>11,LEFT(DrawPrep!D14,FIND(" ",DrawPrep!D14)-1)) -> ΜΟΣΧΟΒΙΝΟΣ
J103: =IF(Setup!$B$19>12,LEFT(DrawPrep!D15,FIND(" ",DrawPrep!D15)-1)) -> ΛΑΜΠΡΟΠΟΥΛΟΣ
J104: =IF(Setup!$B$19>13,LEFT(DrawPrep!D16,FIND(" ",DrawPrep!D16)-1)) -> ΔΗΜΟΠΟΥΛΟΣ
J105: =IF(Setup!$B$19>14,LEFT(DrawPrep!D17,FIND(" ",DrawPrep!D17)-1)) -> ΔΗΜΗΤΡΙΟΥ
J106: =IF(Setup!$B$19>15,LEFT(DrawPrep!D18,FIND(" ",DrawPrep!D18)-1)) -> ΚΑΥΜΕΝΑΚΗΣ

Sheet PrgPrep
A1: =Setup!B3 & ", " & Setup!B4 & ", " & Setup!B6 & " (" & Setup!B7 & ")" -> ΕΦΟΑ, ΠΑΝΕΛΛΑΔΙΚΟ U10, ΑΕΤ ΝΙΚΗ ΠΑΤΡΩΝ (A-A C)
A2: =Setup!$B$10 -> Στέφος Αλέξης
A3: Πρόγραμμα αγώνων | E3: Round 1 | F3: i | G3: Don't change this Worksheet !
A4: ΩΡΑ | B4: Κτγρ. | C4: Αθλητής-Σύλλογος | E4: Αθλητής-Σύλλογος
A5: Έναρξη | B5: =Setup!$B$7 -> A-A C | C5: =IF(OR(Draw!J5="bye",Draw!J5="LWD"), "",CONCATENATE(LEFT(Draw!J5,FIND(" ",Draw!J5)+1)," (",Draw!L5,")")) -> ΙΑΚΩΒΑΚΗΣ Ε (Ο.Α. ΦΟΙΒΟΣ ΛΑΡΙΣΑΣ) | D5: =IF(OR(C5="",E5="")," ","-") ->  | E5: =IF(OR(Draw!J6="bye",Draw!J6="LWD"), "",CONCATENATE(LEFT(Draw!J6,FIND(" ",Draw!J6)+1)," (",Draw!L6,")")) -> 
B6: =Setup!$B$7 -> A-A C | C6: =IF(OR(Draw!J7="bye",Draw!J7="LWD"), "",CONCATENATE(LEFT(Draw!J7,FIND(" ",Draw!J7)+1)," (",Draw!L7,")")) -> ΤΖΙΤΖΙΜΙΚΑΣ Γ (Α.Ο. ΚΟΛΕΓΙΟΥ ΝΤΕΡΗ) | D6: =IF(OR(C6="",E6="")," ","-") ->  | E6: =IF(OR(Draw!J8="bye",Draw!J8="LWD"), "",CONCATENATE(LEFT(Draw!J8,FIND(" ",Draw!J8)+1)," (",Draw!L8,")")) -> 
B7: =Setup!$B$7 -> A-A C | C7: =IF(OR(Draw!J9="bye",Draw!J9="LWD"), "",CONCATENATE(LEFT(Draw!J9,FIND(" ",Draw!J9)+1)," (",Draw!L9,")")) -> ΨΑΡΑΚΗΣ Γ (ΚΙΑΤΟ) | E7: =IF(OR(Draw!J10="bye",Draw!J10="LWD"), "",CONCATENATE(LEFT(Draw!J10,FIND(" ",Draw!J10)+1)," (",Draw!L10,")")) -> 
B8: =Setup!$B$7 -> A-A C | C8: =IF(OR(Draw!J11="bye",Draw!J11="LWD"), "",CONCATENATE(LEFT(Draw!J11,FIND(" ",Draw!J11)+1)," (",Draw!L11,")")) ->  | E8: =IF(OR(Draw!J12="bye",Draw!J12="LWD"), "",CONCATENATE(LEFT(Draw!J12,FIND(" ",Draw!J12)+1)," (",Draw!L12,")")) -> ΛΑΜΠΡΟΠΟΥΛΟΣ Α (ΑΕΚ ΤΡΙΠΟΛΗΣ)
B9: =Setup!$B$7 -> A-A C | C9: =IF(OR(Draw!J13="bye",Draw!J13="LWD"), "",CONCATENATE(LEFT(Draw!J13,FIND(" ",Draw!J13)+1)," (",Draw!L13,")")) -> ΜΟΣΧΟΒΙΝΟΣ Α (Α.Σ. ΑΣΤΕΡΑΣ ΠΕΝΤΕΛΙΚΟΥ) | E9: =IF(OR(Draw!J14="bye",Draw!J14="LWD"), "",CONCATENATE(LEFT(Draw!J14,FIND(" ",Draw!J14)+1)," (",Draw!L14,")")) -> 
A10: όχι πριν | B10: =Setup!$B$7 -> A-A C | C10: =IF(OR(Draw!J15="bye",Draw!J15="LWD"), "",CONCATENATE(LEFT(Draw!J15,FIND(" ",Draw!J15)+1)," (",Draw!L15,")")) -> ΔΑΝΙΗΛΟΓΛΟΥ Γ (Ο.Α. ΓΟΥΔΗ) | E10: =IF(OR(Draw!J16="bye",Draw!J16="LWD"), "",CONCATENATE(LEFT(Draw!J16,FIND(" ",Draw!J16)+1)," (",Draw!L16,")")) -> 
B11: =Setup!$B$7 -> A-A C | C11: =IF(OR(Draw!J17="bye",Draw!J17="LWD"), "",CONCATENATE(LEFT(Draw!J17,FIND(" ",Draw!J17)+1)," (",Draw!L17,")")) -> ΓΙΑΝΝΑΚΟΠΟΥΛΟΣ Δ (Α. Σ. ΚΟΛΛΕΓΙΟΥ ΝΤΕΡΗ) | E11: =IF(OR(Draw!J18="bye",Draw!J18="LWD"), "",CONCATENATE(LEFT(Draw!J18,FIND(" ",Draw!J18)+1)," (",Draw!L18,")")) -> 
B12: =Setup!$B$7 -> A-A C | C12: =IF(OR(Draw!J19="bye",Draw!J19="LWD"), "",CONCATENATE(LEFT(Draw!J19,FIND(" ",Draw!J19)+1)," (",Draw!L19,")")) ->  | E12: =IF(OR(Draw!J20="bye",Draw!J20="LWD"), "",CONCATENATE(LEFT(Draw!J20,FIND(" ",Draw!J20)+1)," (",Draw!L20,")")) -> ΝΙΚΟΛΑΟΥ Α (Α.Ε.Τ. ΝΙΚΗ ΠΑΤΡΩΝ)
B13: =Setup!$B$7 -> A-A C | C13: =IF(OR(Draw!J21="bye",Draw!J21="LWD"), "",CONCATENATE(LEFT(Draw!J21,FIND(" ",Draw!J21)+1)," (",Draw!L21,")")) -> ΛΑΜΠΡΟΠΟΥΛΟΣ Μ (ΑΕΚ ΤΡΙΠΟΛΗΣ) | E13: =IF(OR(Draw!J22="bye",Draw!J22="LWD"), "",CONCATENATE(LEFT(Draw!J22,FIND(" ",Draw!J22)+1)," (",Draw!L22,")")) -> 
B14: =Setup!$B$7 -> A-A C | C14: =IF(OR(Draw!J23="bye",Draw!J23="LWD"), "",CONCATENATE(LEFT(Draw!J23,FIND(" ",Draw!J23)+1)," (",Draw!L23,")")) -> ΜΕΓΑΛΟΓΙΑΝΝΗΣ Κ (ΑΙΟΛΟΣ ΑΘΛ. ΛΕΣΧΗ ΙΛΙΟΥ) | E14: =IF(OR(Draw!J24="bye",Draw!J24="LWD"), "",CONCATENATE(LEFT(Draw!J24,FIND(" ",Draw!J24)+1)," (",Draw!L24,")")) -> 
A15: όχι πριν | B15: =Setup!$B$7 -> A-A C | C15: =IF(OR(Draw!J25="bye",Draw!J25="LWD"), "",CONCATENATE(LEFT(Draw!J25,FIND(" ",Draw!J25)+1)," (",Draw!L25,")")) -> ΜΠΟΝΙΚΟΣ Σ (ΖΑΚΥΝΘΙΝΟΣ Α.Ο.Α.) | E15: =IF(OR(Draw!J26="bye",Draw!J26="LWD"), "",CONCATENATE(LEFT(Draw!J26,FIND(" ",Draw!J26)+1)," (",Draw!L26,")")) -> 
B16: =Setup!$B$7 -> A-A C | C16: =IF(OR(Draw!J27="bye",Draw!J27="LWD"), "",CONCATENATE(LEFT(Draw!J27,FIND(" ",Draw!J27)+1)," (",Draw!L27,")")) ->  | E16: =IF(OR(Draw!J28="bye",Draw!J28="LWD"), "",CONCATENATE(LEFT(Draw!J28,FIND(" ",Draw!J28)+1)," (",Draw!L28,")")) -> ΔΗΜΗΤΡΙΟΥ Γ (ΑΟΑ ΠΑΠΑΓΟΥ)
B17: =Setup!$B$7 -> A-A C | C17: =IF(OR(Draw!J29="bye",Draw!J29="LWD"), "",CONCATENATE(LEFT(Draw!J29,FIND(" ",Draw!J29)+1)," (",Draw!L29,")")) -> ΚΑΤΑΠΟΔΗΣ Γ (ΑΟΑ ΠΑΤΡΩΝ) | E17: =IF(OR(Draw!J30="bye",Draw!J30="LWD"), "",CONCATENATE(LEFT(Draw!J30,FIND(" ",Draw!J30)+1)," (",Draw!L30,")")) -> 
B18: =Setup!$B$7 -> A-A C | C18: =IF(OR(Draw!J31="bye",Draw!J31="LWD"), "",CONCATENATE(LEFT(Draw!J31,FIND(" ",Draw!J31)+1)," (",Draw!L31,")")) ->  | E18: =IF(OR(Draw!J32="bye",Draw!J32="LWD"), "",CONCATENATE(LEFT(Draw!J32,FIND(" ",Draw!J32)+1)," (",Draw!L32,")")) -> 
B19: =Setup!$B$7 -> A-A C | C19: =IF(OR(Draw!J33="bye",Draw!J33="LWD"), "",CONCATENATE(LEFT(Draw!J33,FIND(" ",Draw!J33)+1)," (",Draw!L33,")")) ->  | E19: =IF(OR(Draw!J34="bye",Draw!J34="LWD"), "",CONCATENATE(LEFT(Draw!J34,FIND(" ",Draw!J34)+1)," (",Draw!L34,")")) -> 
A20: όχι πριν | B20: =Setup!$B$7 -> A-A C | C20: =IF(OR(Draw!J35="bye",Draw!J35="LWD"), "",CONCATENATE(LEFT(Draw!J35,FIND(" ",Draw!J35)+1)," (",Draw!L35,")")) ->  | E20: =IF(OR(Draw!J36="bye",Draw!J36="LWD"), "",CONCATENATE(LEFT(Draw!J36,FIND(" ",Draw!J36)+1)," (",Draw!L36,")")) -> ΡΟΖΗΣ Δ (Α.Ε.Τ. ΝΙΚΗ ΠΑΤΡΩΝ)
B21: =Setup!$B$7 -> A-A C | C21: =IF(OR(Draw!J37="bye",Draw!J37="LWD"), "",CONCATENATE(LEFT(Draw!J37,FIND(" ",Draw!J37)+1)," (",Draw!L37,")")) -> ΚΑΡΑΟΥΛΑΝΗΣ Β (Ο.Α. ΦΟΙΒΟΣ ΛΑΡΙΣΑΣ) | E21: =IF(OR(Draw!J38="bye",Draw!J38="LWD"), "",CONCATENATE(LEFT(Draw!J38,FIND(" ",Draw!J38)+1)," (",Draw!L38,")")) -> 
B22: =Setup!$B$7 -> A-A C | C22: =IF(OR(Draw!J39="bye",Draw!J39="LWD"), "",CONCATENATE(LEFT(Draw!J39,FIND(" ",Draw!J39)+1)," (",Draw!L39,")")) ->  | E22: =IF(OR(Draw!J40="bye",Draw!J40="LWD"), "",CONCATENATE(LEFT(Draw!J40,FIND(" ",Draw!J40)+1)," (",Draw!L40,")")) -> 
B23: =Setup!$B$7 -> A-A C | C23: =IF(OR(Draw!J41="bye",Draw!J41="LWD"), "",CONCATENATE(LEFT(Draw!J41,FIND(" ",Draw!J41)+1)," (",Draw!L41,")")) ->  | E23: =IF(OR(Draw!J42="bye",Draw!J42="LWD"), "",CONCATENATE(LEFT(Draw!J42,FIND(" ",Draw!J42)+1)," (",Draw!L42,")")) -> 
B24: =Setup!$B$7 -> A-A C | C24: =IF(OR(Draw!J43="bye",Draw!J43="LWD"), "",CONCATENATE(LEFT(Draw!J43,FIND(" ",Draw!J43)+1)," (",Draw!L43,")")) ->  | E24: =IF(OR(Draw!J44="bye",Draw!J44="LWD"), "",CONCATENATE(LEFT(Draw!J44,FIND(" ",Draw!J44)+1)," (",Draw!L44,")")) -> ΑΦΑΛΩΝΙΑΤΗΣ Θ (Α.Ε.Τ. ΝΙΚΗ ΠΑΤΡΩΝ)
A25: όχι πριν | B25: =Setup!$B$7 -> A-A C | C25: =IF(OR(Draw!J45="bye",Draw!J45="LWD"), "",CONCATENATE(LEFT(Draw!J45,FIND(" ",Draw!J45)+1)," (",Draw!L45,")")) -> ΚΑΥΜΕΝΑΚΗΣ Α (Ο.Α. ΧΑΝΙΩΝ) | E25: =IF(OR(Draw!J46="bye",Draw!J46="LWD"), "",CONCATENATE(LEFT(Draw!J46,FIND(" ",Draw!J46)+1)," (",Draw!L46,")")) -> 
B26: =Setup!$B$7 -> A-A C | C26: =IF(OR(Draw!J47="bye",Draw!J47="LWD"), "",CONCATENATE(LEFT(Draw!J47,FIND(" ",Draw!J47)+1)," (",Draw!L47,")")) ->  | E26: =IF(OR(Draw!J48="bye",Draw!J48="LWD"), "",CONCATENATE(LEFT(Draw!J48,FIND(" ",Draw!J48)+1)," (",Draw!L48,")")) -> 
B27: =Setup!$B$7 -> A-A C | C27: =IF(OR(Draw!J49="bye",Draw!J49="LWD"), "",CONCATENATE(LEFT(Draw!J49,FIND(" ",Draw!J49)+1)," (",Draw!L49,")")) ->  | E27: =IF(OR(Draw!J50="bye",Draw!J50="LWD"), "",CONCATENATE(LEFT(Draw!J50,FIND(" ",Draw!J50)+1)," (",Draw!L50,")")) -> 
B28: =Setup!$B$7 -> A-A C | C28: =IF(OR(Draw!J51="bye",Draw!J51="LWD"), "",CONCATENATE(LEFT(Draw!J51,FIND(" ",Draw!J51)+1)," (",Draw!L51,")")) ->  | E28: =IF(OR(Draw!J52="bye",Draw!J52="LWD"), "",CONCATENATE(LEFT(Draw!J52,FIND(" ",Draw!J52)+1)," (",Draw!L52,")")) -> ΓΟΥΔΕΛΗΣ Δ (Α.Σ. ΑΣΤΕΡΑΣ ΠΕΝΤΕΛΙΚΟΥ)
B29: =Setup!$B$7 -> A-A C | C29: =IF(OR(Draw!J53="bye",Draw!J53="LWD"), "",CONCATENATE(LEFT(Draw!J53,FIND(" ",Draw!J53)+1)," (",Draw!L53,")")) -> ΓΙΑΝΝΟΣ Η (Α.Γ.Ο. ΦΙΛΙΠΠΙΑΔΑΣ) | E29: =IF(OR(Draw!J54="bye",Draw!J54="LWD"), "",CONCATENATE(LEFT(Draw!J54,FIND(" ",Draw!J54)+1)," (",Draw!L54,")")) -> 
A30: όχι πριν | B30: =Setup!$B$7 -> A-A C | C30: =IF(OR(Draw!J55="bye",Draw!J55="LWD"), "",CONCATENATE(LEFT(Draw!J55,FIND(" ",Draw!J55)+1)," (",Draw!L55,")")) ->  | E30: =IF(OR(Draw!J56="bye",Draw!J56="LWD"), "",CONCATENATE(LEFT(Draw!J56,FIND(" ",Draw!J56)+1)," (",Draw!L56,")")) -> 
B31: =Setup!$B$7 -> A-A C | C31: =IF(OR(Draw!J57="bye",Draw!J57="LWD"), "",CONCATENATE(LEFT(Draw!J57,FIND(" ",Draw!J57)+1)," (",Draw!L57,")")) ->  | E31: =IF(OR(Draw!J58="bye",Draw!J58="LWD"), "",CONCATENATE(LEFT(Draw!J58,FIND(" ",Draw!J58)+1)," (",Draw!L58,")")) -> 
B32: =Setup!$B$7 -> A-A C | C32: =IF(OR(Draw!J59="bye",Draw!J59="LWD"), "",CONCATENATE(LEFT(Draw!J59,FIND(" ",Draw!J59)+1)," (",Draw!L59,")")) ->  | E32: =IF(OR(Draw!J60="bye",Draw!J60="LWD"), "",CONCATENATE(LEFT(Draw!J60,FIND(" ",Draw!J60)+1)," (",Draw!L60,")")) -> ΧΑΤΖΟΠΟΥΛΟΣ Β (Α.Γ.Ο. ΦΙΛΙΠΠΙΑΔΑΣ)
B33: =Setup!$B$7 -> A-A C | C33: =IF(OR(Draw!J61="bye",Draw!J61="LWD"), "",CONCATENATE(LEFT(Draw!J61,FIND(" ",Draw!J61)+1)," (",Draw!L61,")")) -> ΔΗΜΟΠΟΥΛΟΣ Ν (Α.Ε.Τ. ΝΙΚΗ ΠΑΤΡΩΝ) | E33: =IF(OR(Draw!J62="bye",Draw!J62="LWD"), "",CONCATENATE(LEFT(Draw!J62,FIND(" ",Draw!J62)+1)," (",Draw!L62,")")) -> 
B34: =Setup!$B$7 -> A-A C | C34: =IF(OR(Draw!J63="bye",Draw!J63="LWD"), "",CONCATENATE(LEFT(Draw!J63,FIND(" ",Draw!J63)+1)," (",Draw!L63,")")) ->  | E34: =IF(OR(Draw!J64="bye",Draw!J64="LWD"), "",CONCATENATE(LEFT(Draw!J64,FIND(" ",Draw!J64)+1)," (",Draw!L64,")")) -> 
B35: =Setup!$B$7 -> A-A C | C35: =IF(OR(Draw!J65="bye",Draw!J65="LWD"), "",CONCATENATE(LEFT(Draw!J65,FIND(" ",Draw!J65)+1)," (",Draw!L65,")")) ->  | E35: =IF(OR(Draw!J66="bye",Draw!J66="LWD"), "",CONCATENATE(LEFT(Draw!J66,FIND(" ",Draw!J66)+1)," (",Draw!L66,")")) -> 
B36: =Setup!$B$7 -> A-A C | C36: =IF(OR(Draw!J67="bye",Draw!J67="LWD"), "",CONCATENATE(LEFT(Draw!J67,FIND(" ",Draw!J67)+1)," (",Draw!L67,")")) ->  | E36: =IF(OR(Draw!J68="bye",Draw!J68="LWD"), "",CONCATENATE(LEFT(Draw!J68,FIND(" ",Draw!J68)+1)," (",Draw!L68,")")) -> ΤΖΩΡΤΖΑΤΟΣ Κ (ΑΟΑ ΠΑΤΡΩΝ)
A38: Πρόγραμμα αγώνων | E38: Round 2 | F38: i | G38: Don't change this Worksheet !
A39: ΩΡΑ | B39: Κτγρ. | C39: Αθλητής-Σύλλογος | E39: Αθλητής-Σύλλογος
A40: Έναρξη | B40: =Setup!$B$7 -> A-A C | C40: =IF(Draw!M5="", "", IF(Draw!M5=1, CONCATENATE(LEFT(Draw!J5,FIND(" ",Draw!J5)+1)," (",Draw!L5,")"),CONCATENATE(LEFT(Draw!J6,FIND(" ",Draw!J6)+1)," (",Draw!L6,")"))) ->  | D40: =IF(OR(C40="",E40="")," ","-") ->  | E40: =IF(Draw!M7="", "", IF(Draw!M7=1, CONCATENATE(LEFT(Draw!J7,FIND(" ",Draw!J7)+1)," (",Draw!L7,")"),CONCATENATE(LEFT(Draw!J8,FIND(" ",Draw!J8)+1)," (",Draw!L8,")"))) -> 
B41: =Setup!$B$7 -> A-A C | C41: =IF(Draw!M9="", "", IF(Draw!M9=1, CONCATENATE(LEFT(Draw!J9,FIND(" ",Draw!J9)+1)," (",Draw!L9,")"),CONCATENATE(LEFT(Draw!J10,FIND(" ",Draw!J10)+1)," (",Draw!L10,")"))) ->  | E41: =IF(Draw!M11="", "", IF(Draw!M11=1, CONCATENATE(LEFT(Draw!J11,FIND(" ",Draw!J11)+1)," (",Draw!L11,")"),CONCATENATE(LEFT(Draw!J12,FIND(" ",Draw!J12)+1)," (",Draw!L12,")"))) -> 
B42: =Setup!$B$7 -> A-A C | C42: =IF(Draw!M13="", "", IF(Draw!M13=1, CONCATENATE(LEFT(Draw!J13,FIND(" ",Draw!J13)+1)," (",Draw!L13,")"),CONCATENATE(LEFT(Draw!J14,FIND(" ",Draw!J14)+1)," (",Draw!L14,")"))) ->  | E42: =IF(Draw!M15="", "", IF(Draw!M15=1, CONCATENATE(LEFT(Draw!J15,FIND(" ",Draw!J15)+1)," (",Draw!L15,")"),CONCATENATE(LEFT(Draw!J16,FIND(" ",Draw!J16)+1)," (",Draw!L16,")"))) -> 
B43: =Setup!$B$7 -> A-A C | C43: =IF(Draw!M17="", "", IF(Draw!M17=1, CONCATENATE(LEFT(Draw!J17,FIND(" ",Draw!J17)+1)," (",Draw!L17,")"),CONCATENATE(LEFT(Draw!J18,FIND(" ",Draw!J18)+1)," (",Draw!L18,")"))) ->  | E43: =IF(Draw!M19="", "", IF(Draw!M19=1, CONCATENATE(LEFT(Draw!J19,FIND(" ",Draw!J19)+1)," (",Draw!L19,")"),CONCATENATE(LEFT(Draw!J20,FIND(" ",Draw!J20)+1)," (",Draw!L20,")"))) -> 
B44: =Setup!$B$7 -> A-A C | C44: =IF(Draw!M21="", "", IF(Draw!M21=1, CONCATENATE(LEFT(Draw!J21,FIND(" ",Draw!J21)+1)," (",Draw!L21,")"),CONCATENATE(LEFT(Draw!J22,FIND(" ",Draw!J22)+1)," (",Draw!L22,")"))) ->  | E44: =IF(Draw!M23="", "", IF(Draw!M23=1, CONCATENATE(LEFT(Draw!J23,FIND(" ",Draw!J23)+1)," (",Draw!L23,")"),CONCATENATE(LEFT(Draw!J24,FIND(" ",Draw!J24)+1)," (",Draw!L24,")"))) -> 
A45: όχι πριν | B45: =Setup!$B$7 -> A-A C | C45: =IF(Draw!M25="", "", IF(Draw!M25=1, CONCATENATE(LEFT(Draw!J25,FIND(" ",Draw!J25)+1)," (",Draw!L25,")"),CONCATENATE(LEFT(Draw!J26,FIND(" ",Draw!J26)+1)," (",Draw!L26,")"))) ->  | E45: =IF(Draw!M27="", "", IF(Draw!M27=1, CONCATENATE(LEFT(Draw!J27,FIND(" ",Draw!J27)+1)," (",Draw!L27,")"),CONCATENATE(LEFT(Draw!J28,FIND(" ",Draw!J28)+1)," (",Draw!L28,")"))) -> 
B46: =Setup!$B$7 -> A-A C | C46: =IF(Draw!M29="", "", IF(Draw!M29=1, CONCATENATE(LEFT(Draw!J29,FIND(" ",Draw!J29)+1)," (",Draw!L29,")"),CONCATENATE(LEFT(Draw!J30,FIND(" ",Draw!J30)+1)," (",Draw!L30,")"))) ->  | E46: =IF(Draw!M31="", "", IF(Draw!M31=1, CONCATENATE(LEFT(Draw!J31,FIND(" ",Draw!J31)+1)," (",Draw!L31,")"),CONCATENATE(LEFT(Draw!J32,FIND(" ",Draw!J32)+1)," (",Draw!L32,")"))) -> 
B47: =Setup!$B$7 -> A-A C | C47: =IF(Draw!M33="", "", IF(Draw!M33=1, CONCATENATE(LEFT(Draw!J33,FIND(" ",Draw!J33)+1)," (",Draw!L33,")"),CONCATENATE(LEFT(Draw!J34,FIND(" ",Draw!J34)+1)," (",Draw!L34,")"))) ->  | E47: =IF(Draw!M35="", "", IF(Draw!M35=1, CONCATENATE(LEFT(Draw!J35,FIND(" ",Draw!J35)+1)," (",Draw!L35,")"),CONCATENATE(LEFT(Draw!J36,FIND(" ",Draw!J36)+1)," (",Draw!L36,")"))) -> 
B48: =Setup!$B$7 -> A-A C | C48: =IF(Draw!M37="", "", IF(Draw!M37=1, CONCATENATE(LEFT(Draw!J37,FIND(" ",Draw!J37)+1)," (",Draw!L37,")"),CONCATENATE(LEFT(Draw!J38,FIND(" ",Draw!J38)+1)," (",Draw!L38,")"))) ->  | E48: =IF(Draw!M39="", "", IF(Draw!M39=1, CONCATENATE(LEFT(Draw!J39,FIND(" ",Draw!J39)+1)," (",Draw!L39,")"),CONCATENATE(LEFT(Draw!J40,FIND(" ",Draw!J40)+1)," (",Draw!L40,")"))) -> 
B49: =Setup!$B$7 -> A-A C | C49: =IF(Draw!M41="", "", IF(Draw!M41=1, CONCATENATE(LEFT(Draw!J41,FIND(" ",Draw!J41)+1)," (",Draw!L41,")"),CONCATENATE(LEFT(Draw!J42,FIND(" ",Draw!J42)+1)," (",Draw!L42,")"))) ->  | E49: =IF(Draw!M43="", "", IF(Draw!M43=1, CONCATENATE(LEFT(Draw!J43,FIND(" ",Draw!J43)+1)," (",Draw!L43,")"),CONCATENATE(LEFT(Draw!J44,FIND(" ",Draw!J44)+1)," (",Draw!L44,")"))) -> 
B50: =Setup!$B$7 -> A-A C | C50: =IF(Draw!M45="", "", IF(Draw!M45=1, CONCATENATE(LEFT(Draw!J45,FIND(" ",Draw!J45)+1)," (",Draw!L45,")"),CONCATENATE(LEFT(Draw!J46,FIND(" ",Draw!J46)+1)," (",Draw!L46,")"))) ->  | E50: =IF(Draw!M47="", "", IF(Draw!M47=1, CONCATENATE(LEFT(Draw!J47,FIND(" ",Draw!J47)+1)," (",Draw!L47,")"),CONCATENATE(LEFT(Draw!J48,FIND(" ",Draw!J48)+1)," (",Draw!L48,")"))) -> 
B51: =Setup!$B$7 -> A-A C | C51: =IF(Draw!M49="", "", IF(Draw!M49=1, CONCATENATE(LEFT(Draw!J49,FIND(" ",Draw!J49)+1)," (",Draw!L49,")"),CONCATENATE(LEFT(Draw!J50,FIND(" ",Draw!J50)+1)," (",Draw!L50,")"))) ->  | E51: =IF(Draw!M51="", "", IF(Draw!M51=1, CONCATENATE(LEFT(Draw!J51,FIND(" ",Draw!J51)+1)," (",Draw!L51,")"),CONCATENATE(LEFT(Draw!J52,FIND(" ",Draw!J52)+1)," (",Draw!L52,")"))) -> 
B52: =Setup!$B$7 -> A-A C | C52: =IF(Draw!M53="", "", IF(Draw!M53=1, CONCATENATE(LEFT(Draw!J53,FIND(" ",Draw!J53)+1)," (",Draw!L53,")"),CONCATENATE(LEFT(Draw!J54,FIND(" ",Draw!J54)+1)," (",Draw!L54,")"))) ->  | E52: =IF(Draw!M55="", "", IF(Draw!M55=1, CONCATENATE(LEFT(Draw!J55,FIND(" ",Draw!J55)+1)," (",Draw!L55,")"),CONCATENATE(LEFT(Draw!J56,FIND(" ",Draw!J56)+1)," (",Draw!L56,")"))) -> 
B53: =Setup!$B$7 -> A-A C | C53: =IF(Draw!M57="", "", IF(Draw!M57=1, CONCATENATE(LEFT(Draw!J57,FIND(" ",Draw!J57)+1)," (",Draw!L57,")"),CONCATENATE(LEFT(Draw!J58,FIND(" ",Draw!J58)+1)," (",Draw!L58,")"))) ->  | E53: =IF(Draw!M59="", "", IF(Draw!M59=1, CONCATENATE(LEFT(Draw!J59,FIND(" ",Draw!J59)+1)," (",Draw!L59,")"),CONCATENATE(LEFT(Draw!J60,FIND(" ",Draw!J60)+1)," (",Draw!L60,")"))) -> 
B54: =Setup!$B$7 -> A-A C | C54: =IF(Draw!M61="", "", IF(Draw!M61=1, CONCATENATE(LEFT(Draw!J61,FIND(" ",Draw!J61)+1)," (",Draw!L61,")"),CONCATENATE(LEFT(Draw!J62,FIND(" ",Draw!J62)+1)," (",Draw!L62,")"))) ->  | E54: =IF(Draw!M63="", "", IF(Draw!M63=1, CONCATENATE(LEFT(Draw!J63,FIND(" ",Draw!J63)+1)," (",Draw!L63,")"),CONCATENATE(LEFT(Draw!J64,FIND(" ",Draw!J64)+1)," (",Draw!L64,")"))) -> 
B55: =Setup!$B$7 -> A-A C | C55: =IF(Draw!M65="", "", IF(Draw!M65=1, CONCATENATE(LEFT(Draw!J65,FIND(" ",Draw!J65)+1)," (",Draw!L65,")"),CONCATENATE(LEFT(Draw!J66,FIND(" ",Draw!J66)+1)," (",Draw!L66,")"))) ->  | D55: =IF(OR(C55="",E55="")," ","-") ->  | E55: =IF(Draw!M67="", "", IF(Draw!M67=1, CONCATENATE(LEFT(Draw!J67,FIND(" ",Draw!J67)+1)," (",Draw!L67,")"),CONCATENATE(LEFT(Draw!J68,FIND(" ",Draw!J68)+1)," (",Draw!L68,")"))) -> 
A57: Πρόγραμμα αγώνων | E57: Round 3 | F57: i | G57: Don't change this Worksheet !
A58: ΩΡΑ | B58: Κτγρ. | C58: Αθλητής-Σύλλογος | E58: Αθλητής-Σύλλογος
B59: =Setup!$B$7 -> A-A C | C59: =Draw!P6 ->  | D59: =IF(OR(C59="",E59="")," ","-") ->  | E59: =Draw!P10 -> 
B60: =Setup!$B$7 -> A-A C | C60: =Draw!P14 ->  | E60: =Draw!P18 -> 
B61: =Setup!$B$7 -> A-A C | C61: =Draw!P22 ->  | E61: =Draw!P26 -> 
B62: =Setup!$B$7 -> A-A C | C62: =Draw!P30 ->  | E62: =Draw!P34 -> 
B63: =Setup!$B$7 -> A-A C | C63: =Draw!P38 ->  | E63: =Draw!P42 -> 
B64: =Setup!$B$7 -> A-A C | C64: =Draw!P46 ->  | E64: =Draw!P50 -> 
B65: =Setup!$B$7 -> A-A C | C65: =Draw!P54 ->  | E65: =Draw!P58 -> 
B66: =Setup!$B$7 -> A-A C | C66: =Draw!P62 ->  | E66: =Draw!P66 -> 
A68: Πρόγραμμα αγώνων | E68: Round 4 | F68: i | G68: Don't change this Worksheet !
A69: ΩΡΑ | B69: Κτγρ. | C69: Αθλητής-Σύλλογος | E69: Αθλητής-Σύλλογος
B70: =Setup!$B$7 -> A-A C | C70: =Draw!R8 ->  | D70: =IF(OR(C70="",E70="")," ","-") ->  | E70: =Draw!R16 -> 
B71: =Setup!$B$7 -> A-A C | C71: =Draw!R24 ->  | D71: =IF(OR(C71="",E71="")," ","-") ->  | E71: =Draw!R32 -> 
B72: =Setup!$B$7 -> A-A C | C72: =Draw!R40 ->  | D72: =IF(OR(C72="",E72="")," ","-") ->  | E72: =Draw!R48 -> 
B73: =Setup!$B$7 -> A-A C | C73: =Draw!R56 ->  | D73: =IF(OR(C73="",E73="")," ","-") ->  | E73: =Draw!R64 -> 
A75: Πρόγραμμα αγώνων | E75: Round 5 | F75: i
A76: ΩΡΑ | B76: Κτγρ. | C76: Αθλητής-Σύλλογος | E76: Αθλητής-Σύλλογος
B77: =Setup!$B$7 -> A-A C | C77: =Draw!T12 ->  | D77: =IF(OR(C77="",E77="")," ","-") ->  | E77: =Draw!T28 -> 
B78: =Setup!$B$7 -> A-A C | C78: =Draw!T44 ->  | D78: =IF(OR(C78="",E78="")," ","-") ->  | E78: =Draw!T60 -> 
A82: Don't change this Worksheet !

Sheet R1
A1: Α' ΕΝΩΣΗ, 2ο Ε3, (Α12)
A2: 0
A3: Πρόγραμμα αγώνων | E3: Round 1 | F3: i
A4: ΩΡΑ | B4: Κτγρ. | C4: Αθλητής-Σύλλογος | E4: Αθλητής-Σύλλογος
A5: Έναρξη
A9: όχι πριν
A13: όχι πριν
A17: όχι πριν
A21: όχι πριν
A25: όχι πριν
A29: όχι πριν
A33: όχι πριν

Sheet R2
A1: Α' ΕΝΩΣΗ, 2ο Ε3, (Α12)
A2: 0
A3: Πρόγραμμα αγώνων | E3: Round 1 | F3: i
A4: ΩΡΑ | B4: Κτγρ. | C4: Αθλητής-Σύλλογος | E4: Αθλητής-Σύλλογος
A5: Έναρξη
A9: όχι πριν
A13: όχι πριν
A17: όχι πριν

Sheet R3, R4, R5
A1: Α' ΕΝΩΣΗ, 2ο Ε3, (Α12)
A2: 0
A3: Πρόγραμμα αγώνων | E3: Round 3 | F3: i
A4: ΩΡΑ | B4: Κτγρ. | C4: Αθλητής-Σύλλογος | E4: Αθλητής-Σύλλογος
A5: Έναρξη | B5: Α12
B6: Α12
B7: Α12
B8: Α12
A9: όχι πριν | B9: Α12
B10: Α12
B11: Α12
B12: Α12
A18: Α' ΕΝΩΣΗ, 2ο Ε3, (Α12)
A19: 0
A20: Πρόγραμμα αγώνων | E20: Round 4 | F20: i
A21: ΩΡΑ | B21: Κτγρ. | C21: Αθλητής-Σύλλογος | E21: Αθλητής-Σύλλογος
A22: Έναρξη | B22: Α12
B23: Α12
B24: Α12
B25: Α12
A31: Α' ΕΝΩΣΗ, 2ο Ε3, (Α12)
A32: 0
A33: Πρόγραμμα αγώνων | E33: Round 5 | F33: i
A34: ΩΡΑ | B34: Κτγρ. | C34: Αθλητής-Σύλλογος | E34: Αθλητής-Σύλλογος
A35: Έναρξη | B35: Α12
B36: Α12

Sheet notes
A1: Α' ΕΝΩΣΗ, 2ο Ε3, (Α12)
A2: 0

Sheet tmp
A1: RndIndx | B1: random | C1: FixRandom | E1: α/α | F1: seed | G1: bye | I1: ΠΡΟΚΡΙΜΑΤΙΚΑ E1, E2 (32 για 8)
A2: 1 | B2: =RAND()/222 -> 0.001243111525 | C2: 0.0005256974938 | E2: 1 | F2: 1 | K2: 17-32 | L2: 9-16 | M2: 5-8 | N2: 3-4 | O2: 2ος | P2: 1ος | S2: 17-32 | T2: 9-16 | U2: 5-8 | V2: 3-4 | W2: 2ος | X2: 1ος
A3: 2 | B3: 0.002050408027 | C3: 0.003716204021 | E3: 2 | G3: 1 | I3: E1 | J3: E1-12 | K3: 1 | L3: 2 | M3: 2 | N3: 0 | O3: 0 | P3: 0 | Q3: E1 | R3: E1-12 | S3: 1 | T3: 1 | U3: 0 | V3: 0 | W3: 0 | X3: 0
A4: 3 | B4: 0.001048633249 | C4: 0.0007418926199 | E4: 3 | J4: E1-14 | K4: 3 | L4: 4 | M4: 4 | N4: 0 | O4: 0 | P4: 0 | R4: E1-14 | S4: 3 | T4: 1 | U4: 0 | V4: 0 | W4: 0 | X4: 0
A5: 4 | B5: 0.001136721591 | C5: 0.003125897704 | E5: 4 | G5: 29 | J5: E1-16 | K5: 6 | L5: 8 | M5: 8 | N5: 0 | O5: 0 | P5: 0 | R5: E1-16 | S5: 6 | T5: 2 | U5: 0 | V5: 0 | W5: 0 | X5: 0
A6: 5 | B6: =RAND()/222 -> 0.002044971365 | C6: 0.0035037586 | E6: 5 | J6: E1-18 | K6: 7.5 | L6: 10 | M6: 10 | R6: E1-18 | S6: 7.5 | T6: 2.5 | U6: 0 | V6: 0 | W6: 0 | X6: 0
A7: 6 | B7: =RAND()/222 -> 0.001836767051 | C7: 0.003146274625 | E7: 6 | G7: 17 | I7: E2 | J7: E2-12 | K7: 0.3 | L7: 0.5 | M7: 0.5 | N7: 0 | O7: 0 | P7: 0 | Q7: E2 | R7: E2-12 | S7: 0.3 | T7: 0.2 | U7: 0 | V7: 0 | W7: 0 | X7: 0
A8: 7 | B8: =RAND()/222 -> 0.003620296709 | C8: 0.003680787802 | E8: 7 | G8: 13 | J8: E2-14 | K8: 1 | L8: 2 | M8: 2 | N8: 0 | O8: 0 | P8: 0 | R8: E2-14 | S8: 1 | T8: 1 | U8: 0 | V8: 0 | W8: 0 | X8: 0
A9: 8 | B9: 0.003141667912 | C9: 0.002231131108 | E9: 8 | F9: 13 | J9: E2-16 | K9: 2 | L9: 4 | M9: 4 | N9: 0 | O9: 0 | P9: 0 | R9: E2-16 | S9: 2 | T9: 2 | U9: 0 | V9: 0 | W9: 0 | X9: 0
A10: 9 | B10: 0.001325512627 | C10: 0.001024232664 | E10: 9 | F10: 11
A11: 10 | B11: 0.0009759523888 | C11: 0.004388589126 | E11: 10 | G11: 9
A12: 11 | B12: 0.003989657014 | C12: 0.003403715664 | E12: 11 | I12: ΚΥΡΙΩΣ ΤΑΜΠΛΟ E1, E2 & E3
A13: 12 | B13: 0.001765498592 | C13: 0.0003902955421 | E13: 12 | G13: 25 | K13: 17-32 | L13: 9-16 | M13: 5-8 | N13: 3-4 | O13: 2ος | P13: 1ος | S13: 17-32 | T13: 9-16 | U13: 5-8 | V13: 3-4 | W13: 2ος | X13: 1ος
A14: 13 | B14: 0.003930873142 | C14: 0.003867724069 | E14: 13 | I14: E1 | J14: E1-12 | K14: 7 | L14: 10 | M14: 14 | N14: 21 | O14: 35 | P14: 42 | Q14: E1 | R14: E1-12 | S14: 7 | T14: 3 | U14: 4 | V14: 7 | W14: 14 | X14: 7
A15: 14 | B15: 0.002966828194 | C15: 0.0022353462 | E15: 14 | G15: 21 | J15: E1-14 | K15: 10 | L15: 15 | M15: 20 | N15: 30 | O15: 50 | P15: 60 | R15: E1-14 | S15: 10 | T15: 5 | U15: 5 | V15: 10 | W15: 20 | X15: 10
A16: 15 | B16: 0.00185003278 | C16: 0.004390888976 | E16: 15 | G16: 5 | J16: E1-16 | K16: 20 | L16: 30 | M16: 40 | N16: 60 | O16: 100 | P16: 120 | R16: E1-16 | S16: 20 | T16: 10 | U16: 10 | V16: 20 | W16: 40 | X16: 20
A17: 16 | B17: 0.001859259037 | C17: 0.002569403994 | E17: 16 | F17: 8 | J17: E1-18 | K17: 25 | L17: 37 | M17: 50 | N17: 75 | O17: 125 | P17: 150 | R17: E1-18 | S17: 25 | T17: 12 | U17: 13 | V17: 25 | W17: 50 | X17: 25
A18: 17 | B18: 0.001772847117 | C18: 0.001145824801 | E18: 17 | F18: 3 | I18: E2 | J18: E2-12 | K18: 4 | L18: 5 | M18: 7 | N18: 10 | O18: 15 | P18: 18 | Q18: E2 | R18: E2-12 | S18: 4 | T18: 1 | U18: 2 | V18: 3 | W18: 5 | X18: 3
A19: 18 | B19: 0.002929610497 | C19: 0.0011876593 | E19: 18 | G19: 3 | J19: E2-14 | K19: 5 | L19: 8 | M19: 10 | N19: 15 | O19: 25 | P19: 30 | R19: E2-14 | S19: 5 | T19: 3 | U19: 2 | V19: 5 | W19: 10 | X19: 5
A20: 19 | B20: 0.0001946490882 | C20: 0.002069497339 | E20: 19 | J20: E2-16 | K20: 10 | L20: 15 | M20: 20 | N20: 30 | O20: 50 | P20: 60 | R20: E2-16 | S20: 10 | T20: 5 | U20: 5 | V20: 10 | W20: 20 | X20: 10
A21: 20 | B21: 0.000314228046 | C21: 0.001301747215 | E21: 20 | G21: 31 | I21: E3 | J21: E3-12 | K21: 0.5 | L21: 2 | M21: 3 | N21: 4 | O21: 7 | P21: 8 | Q21: E3 | R21: E3-12 | S21: 0.5 | T21: 1.5 | U21: 1 | V21: 1 | W21: 3 | X21: 1
A22: 21 | B22: 0.001576268689 | C22: 0.004396778626 | E22: 21 | J22: E3-14 | K22: 2 | L22: 3 | M22: 4 | N22: 6 | O22: 10 | P22: 12 | R22: E3-14 | S22: 2 | T22: 1 | U22: 1 | V22: 2 | W22: 4 | X22: 2
A23: 22 | B23: 0.002976213913 | C23: 0.001261425602 | E23: 22 | G23: 19 | J23: E3-16 | K23: 4 | L23: 6 | M23: 8 | N23: 12 | O23: 20 | P23: 24 | R23: E3-16 | S23: 4 | T23: 2 | U23: 2 | V23: 4 | W23: 8 | X23: 4
A24: 23 | B24: 1.079155241e-05 | C24: 0.0001589658724 | E24: 23 | G24: 15
A25: 24 | B25: 0.003735877652 | C25: 0.002476471478 | E25: 24 | F25: 15
A26: 25 | B26: 0.0007596974959 | C26: 0.00226565647 | E26: 25 | F26: 12 | J26: ΔΙΠΛΑ E1, E2
A27: 26 | B27: 0.001878625736 | C27: 0.0002687772641 | E27: 26 | G27: 11 | L27: 9-16 | M27: 5-8 | N27: 3-4 | O27: 2ος | P27: 1ος | S27: 9-16 | T27: 5-8 | U27: 3-4 | V27: 2ος | W27: 1ος
A28: 27 | B28: 0.002715394605 | C28: 0.001597812772 | E28: 27 | J28: E1 | K28: E1-12 | L28: 3 | M28: 4 | N28: 5 | O28: 9 | P28: 11 | Q28: E1 | R28: E1-12 | S28: 3 | T28: 1 | U28: 1 | V28: 4 | W28: 2
A29: 28 | B29: 0.002181498418 | C29: 0.001763329102 | E29: 28 | G29: 27 | K29: E1-14 | L29: 4 | M29: 5 | N29: 8 | O29: 13 | P29: 15 | R29: E1-14 | S29: 4 | T29: 1 | U29: 3 | V29: 5 | W29: 2
A30: 29 | B30: 0.001425337808 | C30: 0.0008400634015 | E30: 29 | K30: E1-16 | L30: 8 | M30: 10 | N30: 15 | O30: 25 | P30: 30 | R30: E1-16 | S30: 8 | T30: 2 | U30: 5 | V30: 10 | W30: 5
A31: 30 | B31: 0.003919494708 | C31: 0.00227932932 | E31: 30 | G31: 23 | K31: E1-18 | L31: 9 | M31: 12 | N31: 19 | O31: 31 | P31: 37 | R31: E1-18 | S31: 9 | T31: 3 | U31: 7 | V31: 12 | W31: 6
A32: 31 | B32: 0.002577715437 | C32: 0.0006518487386 | E32: 31 | G32: 7 | J32: E2 | K32: E2-12 | L32: 1 | M32: 2 | N32: 3 | O32: 4 | P32: 8 | Q32: E2 | R32: E2-12 | S32: 1 | T32: 1 | U32: 1 | V32: 1 | W32: 4
A33: 32 | B33: 0.002715768622 | C33: 0.00363790181 | E33: 32 | F33: 6 | K33: E2-14 | L33: 2 | M33: 3 | N33: 4 | O33: 6 | P33: 8 | R33: E2-14 | S33: 2 | T33: 1 | U33: 1 | V33: 2 | W33: 2
A34: 33 | B34: 0.0001088289243 | C34: 0.002916478743 | E34: 33 | F34: 5 | K34: E2-16 | L34: 4 | M34: 6 | N34: 8 | O34: 12 | P34: 16 | R34: E2-16 | S34: 4 | T34: 2 | U34: 2 | V34: 4 | W34: 4
A35: 34 | B35: 0.003147893793 | C35: 0.004471277091 | E35: 34 | G35: 8
A36: 35 | B36: 0.0002349630958 | C36: 0.004139639331 | E36: 35
A37: 36 | B37: 0.003462821198 | C37: 0.002722648385 | E37: 36 | G37: 28
A38: 37 | B38: 0.002949571139 | C38: 0.002576157368 | E38: 37
A39: 38 | B39: 0.003368823162 | C39: 0.003649351735 | E39: 38 | G39: 20
A40: 39 | B40: 0.003502247458 | C40: 0.004031712655 | E40: 39 | G40: 12
A41: 40 | B41: 0.0009968600579 | C41: 0.0006547730034 | E41: 40 | F41: 10
A42: 41 | B42: 0.003207457072 | C42: 0.000793284379 | E42: 41 | F42: 14
A43: 42 | B43: 0.003759838776 | C43: 0.004443441395 | E43: 42 | G43: 16
A44: 43 | B44: 0.0006989435547 | C44: 0.00440888908 | E44: 43
A45: 44 | B45: 0.00147317747 | C45: 0.0003949713175 | E45: 44 | G45: 24
A46: 45 | B46: 0.00357151332 | C46: 0.001645775757 | E46: 45
A47: 46 | B47: 0.004367089456 | C47: 0.0043893548 | E47: 46 | G47: 32
A48: 47 | B48: 0.002388644782 | C48: 0.003602150429 | E48: 47 | G48: 4
A49: 48 | B49: 0.0007874525577 | C49: 0.00282160945 | E49: 48 | F49: 4
A50: 49 | B50: 0.001097212039 | C50: 9.920192333e-05 | E50: 49 | F50: 7
A51: 50 | B51: 0.003588696664 | C51: 0.0005881134185 | E51: 50 | G51: 6
A52: 51 | B52: 0.002346480244 | C52: 0.002996621548 | E52: 51
A53: 52 | B53: 0.001435754653 | C53: 0.000290582207 | E53: 52 | G53: 22
A54: 53 | B54: 0.001376652379 | C54: 0.002061580676 | E54: 53
A55: 54 | B55: 0.001854170422 | C55: 9.166444063e-05 | E55: 54 | G55: 26
A56: 55 | B56: 0.0007549817262 | C56: 0.004435431899 | E56: 55 | G56: 10
A57: 56 | B57: 0.000783347307 | C57: 0.0003718968951 | E57: 56 | F57: 9
A58: 57 | B58: 0.003350603085 | C58: 0.002049848342 | E58: 57 | F58: 16
A59: 58 | B59: 0.001946450854 | C59: 0.003142819704 | E59: 58 | G59: 14
A60: 59 | B60: 0.003938991292 | C60: 0.00243443337 | E60: 59
A61: 60 | B61: 0.003543262611 | C61: 0.002122235773 | E61: 60 | G61: 18
A62: 61 | B62: 0.001529880272 | C62: 0.002607145972 | E62: 61
A63: 62 | B63: 0.002340701485 | C63: 0.002502009365 | E63: 62 | G63: 30
A64: 63 | B64: 0.0009248021413 | C64: 0.002132213746 | E64: 63 | G64: 2
A65: 64 | B65: 0.004401968176 | C65: 0.004319046889 | E65: 64 | F65: 2

Sheet tmpRankings
A1: ΑΜ | B1: Ονοματεπώνυμο | C1: Γεν. | D1: Σύλλογος | E1: Βαθμ
G2: =VLOOKUP(c3;tmpRankings!$A$2:$E$251;5;FALSE)
